{"text_format":"1","workbook":"xlsx","n_sheets":5,"sheets":["FL Cover Sheet","Value Reconciliation","Data Entry-Inventory Worksheet","Tables","Price Tbl-2026 SalesComp"],"not_rendered":{"charts":0,"images":0,"macros":1,"external_links":2,"defined_names":7,"comments":2,"pivot_tables":0},"unopened":[],"bounds":{"document_bytes":16777216,"sheet_cells":100000,"rows_first":2000,"rows_last":500,"rows_between":2000,"halvings":0,"cell_chars":16384,"cell_head_chars":4096},"cells_cut":0,"cells_raw":0,"read":"whole","date_system":"1900"}

{"sheet":"FL Cover Sheet","index":0,"n_rows":143,"n_cols":6,"rows_kept":143,"cut":false,"hidden":false,"merged":[[21,0,21,3],[27,0,27,3],[22,2,23,2],[22,3,23,3],[15,5,15,12],[1,0,1,3],[2,0,2,3],[2,5,3,9],[4,5,5,9],[7,5,9,12],[9,0,9,3],[10,5,10,12],[11,5,11,12],[12,5,12,12],[14,5,14,12],[17,5,17,12],[13,5,13,12],[16,5,16,12]]}
["County",null,"Appraisal Year ",2026]
[]
[null,null,null,null,null,"LIGHT YELLOW SHADED FIELDS ARE FOR USER INPUT THROUGHOUT THIS TEMPLATE"]
["Facility Name"]
["Company/Owner Name",null,null,null,null,"Other colors and non-shaded fields should remain locked to function properly. They contain data and calculations that will populate automatically based on user input into yellow fields. "]
["Situs Address",null,"Situs Zip"]
["Facility Contact"]
["Phone # ",null,null,null,null,"USING TEMPLATE"]
[]
[]
["Parcel ID",null,"Quick Ref ID",null,null,"Begin by completing required yellow shaded fields on Cover Sheet (brown tab)"]
[null,null,null,null,null,"Next go to Data Entry-Cost Worksheet (bright blue tab)"]
[null,null,null,null,null,"Enter data into yellow shaded fields. Not all data required. Drop-downs description data for convenience"]
[null,null,null,null,null,"Quality and Condition cells are required for each line entry to create overall rating for feedlot"]
[null,null,null,null,null,"Verify Overall Feedlot Rating, make adjustments per section for accurate quality and condition descriptions"]
[null,null,null,null,null,"Add any notes at bottom of data entry worksheet"]
[null,null,null,null,null,"Go to Value Reconciliation tab (bright yellow) . Verify quality and condition data for Overall Feedlot Rate"]
[null,null,null,null,null,"OVERRIDE Feedlot Rate replaces calculated Overall Rate in Sales Comparison Finalized Overall Feedlot Quality & Condition"]
[]
[]
[]
[]
["Feedlot Location/Region",null,"Primary Feed Process"]
["Land Value Region"]
["Licensed Head Capacity",null,"License Type"]
["*Reported Bunk Capacity     ",null,"**Bunk Linear Ft       "]
["*Avg Head on Feed if known. Leave blank if unknown.",null,"**Enter ONLY if Reported Bunk Capacity unknown/blank."]
[]
["Inspection Date"]
["Review Appraiser"]
[]
[]
[]
[]
[]
[]
[]
[]
[null,"Allen"]
[null,"Anderson"]
[null,"Atchison"]
[null,"Barber"]
[null,"Barton"]
[null,"Bourbon"]
[null,"Brown"]
[null,"Butler"]
[null,"Chase"]
[null,"Chautauqua"]
[null,"Cherokee"]
[null,"Cheyenne"]
[null,"Clark"]
[null,"Clay"]
[null,"Cloud"]
[null,"Coffey"]
[null,"Comanche"]
[null,"Cowley"]
[null,"Crawford"]
[null,"Decatur"]
[null,"Dickinson"]
[null,"Doniphan"]
[null,"Douglas"]
[null,"Edwards"]
[null,"Elk"]
[null,"Ellis"]
[null,"Ellsworth"]
[null,"Finney"]
[null,"Ford"]
[null,"Franklin"]
[null,"Geary"]
[null,"Gove"]
[null,"Graham"]
[null,"Grant"]
[null,"Gray"]
[null,"Greeley "]
[null,"Greenwood"]
[null,"Hamilton"]
[null,"Harper"]
[null,"Harvey"]
[null,"Haskell"]
[null,"Hodgeman"]
[null,"Jackson"]
[null,"Jefferson"]
[null,"Jewell"]
[null,"Johnson"]
[null,"Kearny"]
[null,"Kingman"]
[null,"Kiowa"]
[null,"Labette"]
[null,"Lane"]
[null,"Leavenworth"]
[null,"Lincoln"]
[null,"Linn"]
[null,"Logan"]
[null,"Lyon"]
[null,"Marion"]
[null,"Marshall"]
[null,"McPherson"]
[null,"Meade"]
[null,"Miami"]
[null,"Mitchell"]
[null,"Montgomery"]
[null,"Morris"]
[null,"Morton"]
[null,"Nemaha"]
[null,"Neosho"]
[null,"Ness"]
[null,"Norton"]
[null,"Osage"]
[null,"Osborne"]
[null,"Ottawa"]
[null,"Pawnee"]
[null,"Phillips"]
[null,"Pottawatomie"]
[null,"Pratt"]
[null,"Rawlins"]
[null,"Reno"]
[null,"Republic"]
[null,"Rice"]
[null,"Riley"]
[null,"Rooks"]
[null,"Rush"]
[null,"Russell"]
[null,"Saline"]
[null,"Scott"]
[null,"Sedgwick"]
[null,"Seward"]
[null,"Shawnee"]
[null,"Sheridan"]
[null,"Sherman"]
[null,"Smith"]
[null,"Stafford"]
[null,"Stanton"]
[null,"Stevens"]
[null,"Sumner"]
[null,"Thomas"]
[null,"Trego"]
[null,"Wabaunsee"]
[null,"Wallace"]
[null,"Washington"]
[null,"Wichita"]
[null,"Wilson"]
[null,"Woodson"]
[null,"Wyandotte"]

{"sheet":"Value Reconciliation","index":1,"n_rows":34,"n_cols":8,"rows_kept":34,"cut":false,"hidden":false,"merged":[[12,7,13,12],[12,0,12,2],[12,3,12,4],[12,5,12,6],[26,0,26,3],[16,5,16,6],[17,5,17,6],[21,4,21,6],[21,0,21,3],[18,0,18,6],[16,0,16,4],[17,0,17,4],[19,0,19,1],[20,0,20,6],[9,5,9,6],[13,0,13,1],[15,3,15,4],[9,0,9,2],[9,3,9,4],[10,0,10,2],[10,3,10,4],[14,0,14,6],[15,5,15,6],[10,5,10,6],[15,0,15,2],[6,5,6,6],[7,5,7,6],[8,5,8,6],[6,0,6,2],[7,0,7,2],[8,0,8,2],[6,3,6,4],[7,3,7,4],[8,3,8,4],[0,3,0,4],[3,0,3,1],[4,5,4,6],[5,5,5,6],[4,3,4,4],[4,0,4,2],[5,0,5,2],[5,3,5,4],[1,5,1,6],[31,0,31,3],[31,4,31,6],[33,0,36,6],[22,0,22,6],[24,0,24,2],[25,0,25,4],[23,3,23,4],[24,3,24,4],[24,5,24,6],[25,5,25,6],[27,0,27,6],[29,0,29,3],[29,4,29,6],[30,0,30,3],[30,4,30,6],[26,4,26,6]]}
["Quick Ref ID#",{"$f":"IF('FL Cover Sheet'!D11=\"\",\"\",'FL Cover Sheet'!D11)","v":""},"Owner",{"$f":"IF('FL Cover Sheet'!B5=\"\",\"\",'FL Cover Sheet'!B5)","v":""},null,"Tax Year",{"$f":"'FL Cover Sheet'!D1","v":2026}]
["Situs",{"$f":"IF('FL Cover Sheet'!B6=\"\",\"\",'FL Cover Sheet'!B6)","v":""},"Situs ZIP",{"$f":"IF('FL Cover Sheet'!D6=\"\",\"\",'FL Cover Sheet'!D6)","v":""},"Region",{"$f":"IF('FL Cover Sheet'!B23=\"\",\"\",'FL Cover Sheet'!B23)","v":""}]
[]
["Feedlot Quality and Condition Summary"]
[null,null,null,"Quality",null,"Condition"]
["Feedlot Improvements",null,null,{"$f":"IFERROR(_xlfn.IFNA(VLOOKUP(IF('Data Entry-Inventory Worksheet'!L30<1,Tables!$S$129,ROUND('Data Entry-Inventory Worksheet'!L30,0)),Tables!$S$125:$T$129,2,FALSE),\"\"),\"\")","v":""},null,{"$f":"IFERROR(_xlfn.IFNA(VLOOKUP(MROUND('Data Entry-Inventory Worksheet'!N30,0.5),Tables!$L$29:$M$37,2,FALSE),\"\"),\"\")","v":""}]
["Cattle Pens",null,null,{"$f":"IFERROR(_xlfn.IFNA(VLOOKUP(IF('Data Entry-Inventory Worksheet'!L44<1,Tables!$S$129,ROUND('Data Entry-Inventory Worksheet'!L44,0)),Tables!$S$125:$T$129,2,FALSE),\"\"),\"\")","v":""},null,{"$f":"IFERROR(_xlfn.IFNA(VLOOKUP(MROUND('Data Entry-Inventory Worksheet'!N44,0.5),Tables!$L$29:$M$37,2,FALSE),\"\"),\"\")","v":""}]
["Feed Storage Type",null,null,{"$f":"IFERROR(_xlfn.IFNA(VLOOKUP(IF('Data Entry-Inventory Worksheet'!L58<1,Tables!$S$129,ROUND('Data Entry-Inventory Worksheet'!L58,0)),Tables!$S$125:$T$129,2,FALSE),\"\"),\"\")","v":""},null,{"$f":"IFERROR(_xlfn.IFNA(VLOOKUP(MROUND('Data Entry-Inventory Worksheet'!N58,0.5),Tables!$L$29:$M$37,2,FALSE),\"\"),\"\")","v":""}]
["Feed Processing Type",null,null,{"$f":"IFERROR(_xlfn.IFNA(VLOOKUP(IF('Data Entry-Inventory Worksheet'!L67<1,Tables!$S$129,ROUND('Data Entry-Inventory Worksheet'!L67,0)),Tables!$S$125:$T$129,2,FALSE),\"\"),\"\")","v":""},null,{"$f":"IFERROR(_xlfn.IFNA(VLOOKUP(MROUND('Data Entry-Inventory Worksheet'!N67,0.5),Tables!$L$29:$M$37,2,FALSE),\"\"),\"\")","v":""}]
["Quality & Condition Overall Feedlot ",null,null,{"$f":"'Data Entry-Inventory Worksheet'!L72","v":""},null,{"$f":"'Data Entry-Inventory Worksheet'!N72","v":""}]
["Quality & Condition OVERRIDE Feedlot "]
[]
["Quality & Condition FINAL CONCLUSION",null,null,null,null,null,null,"Quality and condition MUST match; if using the spreadsheet assigned quality, you must use the spreadsheet assigned condition; or if using the override quality, you must use the override condition."]
["Sales Comparison Approach Summary"]
[]
["Finalized Overall Feedlot Quality & Condition",null,null,{"$f":"IF(D13=\"\",\"\",D13)","v":""},null,{"$f":"IF(F13=\"\",\"\",F13)","v":""}]
["Bunk Capacity",null,null,null,null,{"$f":"'Data Entry-Inventory Worksheet'!$G$10","v":""}]
["Value per Head $",null,null,null,null,{"$f":"_xlfn.IFNA(MROUND(VLOOKUP(D13,Tables!AQ4:CW17,VLOOKUP(F13,Tables!BC22:BD30,2,FALSE)-1+VLOOKUP('FL Cover Sheet'!$D$23,Tables!BF23:BG27,2,FALSE),FALSE),1),\"\")","v":""}]
[]
["Reconciliation of Value"]
[]
["Total Feedlot Value (Includes Land)",null,null,null,{"$f":"IFERROR(ROUND(F17*F18,0),\"\")","v":""}]
[]
[null,null,null,"Land Region"]
["Land Value per Acre",null,null,{"$f":"IF('FL Cover Sheet'!B24=\"\",\"\",'FL Cover Sheet'!B24)","v":""},null,{"$f":"IF($D$25=\"\",\"\",VLOOKUP($D$25,Tables!$A$24:$B$32,2,FALSE))","v":""}]
["                                        Total Feedlot Acres",null,null,null,null,{"$f":"'Data Entry-Inventory Worksheet'!$D$16","v":""}]
["Total Feedlot Land Value",null,null,null,{"$f":"IFERROR(ROUND(F25*F26,0),\"\")","v":""}]
[]
[]
["Total Feedlot Value (Includes Land)",null,null,null,{"$f":"$E$22","v":""}]
["Total Feedlot Land Value",null,null,null,{"$f":"IFERROR(ROUND(IF($E$27>(0.5*E30),(0.5*E30),E27),0),\"\")","v":""}]
["Final Value Conclusion- Feedlot Value Less Land (Orion Entry)",null,null,null,{"$f":"IFERROR(ROUND(IF(E30-E31<0,0,E30-E31),0),\"\")","v":""}]
[]
["Notes:"]

{"sheet":"Data Entry-Inventory Worksheet","index":2,"n_rows":86,"n_cols":26,"rows_kept":86,"cut":false,"hidden":false,"merged":[[1,5,1,6],[73,9,73,13],[81,9,81,13],[74,7,85,8],[7,4,7,5],[17,3,17,9],[17,10,17,13],[65,3,65,4],[70,9,71,9],[68,0,72,7],[61,3,61,4],[62,3,62,4],[63,3,63,4],[64,3,64,4],[65,0,65,2],[61,0,61,2],[63,0,63,2],[38,1,38,2],[39,1,39,2],[55,1,55,2],[56,1,56,2],[50,1,50,2],[51,1,51,2],[53,1,53,2],[54,1,54,2],[52,1,52,2],[64,0,64,2],[62,0,62,2],[67,0,67,7],[8,4,8,5],[9,4,9,5],[15,5,15,7],[16,5,16,7],[11,4,11,5],[12,4,12,5],[13,4,13,5],[10,4,10,6],[14,4,14,7],[23,1,23,2],[24,1,24,2],[25,1,25,2],[26,1,26,2],[60,3,60,4],[60,0,60,2],[41,1,41,2],[42,1,42,2],[40,1,40,2],[46,1,46,2],[47,1,47,2],[48,1,48,2],[49,1,49,2],[16,1,16,2],[15,1,15,2],[44,10,44,11],[36,1,36,2],[37,1,37,2],[18,1,18,2],[19,1,19,2],[27,1,27,2],[28,1,28,2],[32,1,32,2],[33,1,33,2],[34,1,34,2],[35,1,35,2],[20,1,20,2],[21,1,21,2],[22,1,22,2],[7,1,7,2],[8,1,8,2],[9,1,9,2],[14,1,14,2],[0,3,0,4],[3,0,3,6],[4,1,4,2],[5,1,5,2],[6,1,6,2],[4,4,4,6],[5,4,5,5],[6,4,6,5],[10,1,10,2],[11,1,11,2],[12,1,12,2],[13,1,13,2]]}
["Quick Ref ID#",{"$f":"IF('FL Cover Sheet'!D11=\"\",\"\",'FL Cover Sheet'!D11)","v":""},"Owner",{"$f":"IF('FL Cover Sheet'!B5=\"\",\"\",'FL Cover Sheet'!B5)","v":""},null,"Tax Year",{"$f":"'FL Cover Sheet'!D1","v":2026},null,null,null,null,null,null,null,null,null,null,null,null,null,null,null," Improvements","Cattle Pens","Feed Storage","Feed Process"]
["Situs",{"$f":"IF('FL Cover Sheet'!B6=\"\",\"\",'FL Cover Sheet'!B6)","v":""},"Situs ZIP",{"$f":"IF('FL Cover Sheet'!D6=\"\",\"\",'FL Cover Sheet'!D6)","v":""},"Region",{"$f":"IF('FL Cover Sheet'!B23=\"\",\"\",'FL Cover Sheet'!B23)","v":""},null,null,null,null,null,null,null,null,null,null,null,null,null,null,null,null,{"$f":"MATCH(W1,$J:$J,0)","v":30},{"$f":"MATCH(X1,$J:$J,0)","v":44},58,67]
[]
["Commercial Feedlot Real Estate Inventory"]
["Quick Ref","Parcel Number ",null,"Feedlot Acres per Parcel","Feedlot Capacity"]
[{"$f":"IF('FL Cover Sheet'!D11=\"\",\"\",'FL Cover Sheet'!D11)","v":""},{"$f":"IF('FL Cover Sheet'!B11=\"\",\"\",'FL Cover Sheet'!B11)","v":""},null,null,"Licensed Capacity ",null,{"$f":"IF('FL Cover Sheet'!B25=\"\",\"\",'FL Cover Sheet'!B25)","v":""}]
[{"$f":"IF('FL Cover Sheet'!D12=\"\",\"\",'FL Cover Sheet'!D12)","v":""},{"$f":"IF('FL Cover Sheet'!B12=\"\",\"\",'FL Cover Sheet'!B12)","v":""},null,null,"Inches per Head",null,12]
[{"$f":"IF('FL Cover Sheet'!D13=\"\",\"\",'FL Cover Sheet'!D13)","v":""},{"$f":"IF('FL Cover Sheet'!B13=\"\",\"\",'FL Cover Sheet'!B13)","v":""},null,null,"Reported Bunk Capacity",null,{"$f":"IF('FL Cover Sheet'!$B$26=\"\",\"\",'FL Cover Sheet'!B26)","v":""}]
[{"$f":"IF('FL Cover Sheet'!D14=\"\",\"\",'FL Cover Sheet'!D14)","v":""},{"$f":"IF('FL Cover Sheet'!B14=\"\",\"\",'FL Cover Sheet'!B14)","v":""},null,null,"Bunk Linear Feet",null,{"$f":"IF('FL Cover Sheet'!$D$26=\"\",\"\",'FL Cover Sheet'!D26)","v":""}]
[{"$f":"IF('FL Cover Sheet'!D15=\"\",\"\",'FL Cover Sheet'!D15)","v":""},{"$f":"IF('FL Cover Sheet'!B15=\"\",\"\",'FL Cover Sheet'!B15)","v":""},null,null,"Reported OR Calculated Bunk Capacity",null,{"$f":"IFERROR(IF(G8=\"\",ROUND(G9*12/G7,0),G8),\"\")","v":""}]
[{"$f":"IF('FL Cover Sheet'!D16=\"\",\"\",'FL Cover Sheet'!D16)","v":""},{"$f":"IF('FL Cover Sheet'!B16=\"\",\"\",'FL Cover Sheet'!B16)","v":""},null,null,"Feedlot Region / Location"]
[{"$f":"IF('FL Cover Sheet'!D17=\"\",\"\",'FL Cover Sheet'!D17)","v":""},{"$f":"IF('FL Cover Sheet'!B17=\"\",\"\",'FL Cover Sheet'!B17)","v":""},null,null,"Feedlot Region",null,{"$f":"IF('FL Cover Sheet'!B23=\"\",\"\",'FL Cover Sheet'!B23)","v":""}]
[{"$f":"IF('FL Cover Sheet'!D18=\"\",\"\",'FL Cover Sheet'!D18)","v":""},{"$f":"IF('FL Cover Sheet'!B18=\"\",\"\",'FL Cover Sheet'!B18)","v":""},null,null,"Land Value Region",null,{"$f":"IF('FL Cover Sheet'!B24=\"\",\"\",'FL Cover Sheet'!B24)","v":""}]
[{"$f":"IF('FL Cover Sheet'!D19=\"\",\"\",'FL Cover Sheet'!D19)","v":""},{"$f":"IF('FL Cover Sheet'!B19=\"\",\"\",'FL Cover Sheet'!B19)","v":""},null,null,"Feedlot Access"]
[{"$f":"IF('FL Cover Sheet'!D20=\"\",\"\",'FL Cover Sheet'!D20)","v":""},{"$f":"IF('FL Cover Sheet'!B20=\"\",\"\",'FL Cover Sheet'!B20)","v":""},null,null,"Feed Processing / Mill Type"]
[null,"Total Feedlot Acres",null,{"$f":"IF(SUM(D6:D15)=0,\"\",ROUND(SUM(D6:D15),2))","v":""},"Primary Process Type",{"$f":"IF('FL Cover Sheet'!D23=\"\",\"\",'FL Cover Sheet'!D23)","v":""}]
[null,"Total Licensed Capacity / Acre",null,{"$f":"IFERROR(ROUND($G$6/$D$16,0),\"\")","v":""},"Secondary Process Type"]
["Improvements",null,null,"All data fields in lavendar are OPTIONAL for descriptive purposes",null,null,null,null,null,null,"Quality & Cond REQUIRED if line entry"]
["Improvement Type","Imp Descrip-Construction",null,"M&S Occupancy","M&S Const Class","Size/SF","Perimeter / Dimensions","Wall Height","Year Built","Exterior Wall ","Quality","Quality Rate","Condition","Cond Rate"]
[null,null,null,null,null,null,null,null,null,null,null,{"$f":"IF(K20=\"\",\"\",VLOOKUP(K20,Tables!$K$13:$L$26,2,FALSE))","v":""},null,{"$f":"IF(M20=\"\",\"\",VLOOKUP(M20,Tables!$K$29:$L$37,2,FALSE))","v":""}]
[null,null,null,null,null,null,null,null,null,null,null,{"$f":"IF(K21=\"\",\"\",VLOOKUP(K21,Tables!$K$13:$L$26,2,FALSE))","v":""},null,{"$f":"IF(M21=\"\",\"\",VLOOKUP(M21,Tables!$K$29:$L$37,2,FALSE))","v":""}]
[null,null,null,null,null,null,null,null,null,null,null,{"$f":"IF(K22=\"\",\"\",VLOOKUP(K22,Tables!$K$13:$L$26,2,FALSE))","v":""},null,{"$f":"IF(M22=\"\",\"\",VLOOKUP(M22,Tables!$K$29:$L$37,2,FALSE))","v":""}]
[null,null,null,null,null,null,null,null,null,null,null,{"$f":"IF(K23=\"\",\"\",VLOOKUP(K23,Tables!$K$13:$L$26,2,FALSE))","v":""},null,{"$f":"IF(M23=\"\",\"\",VLOOKUP(M23,Tables!$K$29:$L$37,2,FALSE))","v":""}]
[null,null,null,null,null,null,null,null,null,null,null,{"$f":"IF(K24=\"\",\"\",VLOOKUP(K24,Tables!$K$13:$L$26,2,FALSE))","v":""},null,{"$f":"IF(M24=\"\",\"\",VLOOKUP(M24,Tables!$K$29:$L$37,2,FALSE))","v":""}]
[null,null,null,null,null,null,null,null,null,null,null,{"$f":"IF(K25=\"\",\"\",VLOOKUP(K25,Tables!$K$13:$L$26,2,FALSE))","v":""},null,{"$f":"IF(M25=\"\",\"\",VLOOKUP(M25,Tables!$K$29:$L$37,2,FALSE))","v":""}]
[null,null,null,null,null,null,null,null,null,null,null,{"$f":"IF(K26=\"\",\"\",VLOOKUP(K26,Tables!$K$13:$L$26,2,FALSE))","v":""},null,{"$f":"IF(M26=\"\",\"\",VLOOKUP(M26,Tables!$K$29:$L$37,2,FALSE))","v":""}]
[null,null,null,null,null,null,null,null,null,null,null,{"$f":"IF(K27=\"\",\"\",VLOOKUP(K27,Tables!$K$13:$L$26,2,FALSE))","v":""},null,{"$f":"IF(M27=\"\",\"\",VLOOKUP(M27,Tables!$K$29:$L$37,2,FALSE))","v":""}]
[null,null,null,null,null,null,null,null,null,null,null,{"$f":"IF(K28=\"\",\"\",VLOOKUP(K28,Tables!$K$13:$L$26,2,FALSE))","v":""},null,{"$f":"IF(M28=\"\",\"\",VLOOKUP(M28,Tables!$K$29:$L$37,2,FALSE))","v":""}]
[null,null,null,null,null,null,null,null,null,null,null,{"$f":"IF(K29=\"\",\"\",VLOOKUP(K29,Tables!$K$13:$L$26,2,FALSE))","v":""},null,{"$f":"IF(M29=\"\",\"\",VLOOKUP(M29,Tables!$K$29:$L$37,2,FALSE))","v":""}]
[null,null,null,null,null,null,null,null,null," Improvements","Quality Average",{"$f":"IFERROR(ROUND(AVERAGE(L20:L29),2),\"\")","v":""},"Condition Average",{"$f":"IFERROR(ROUND(AVERAGE(N20:N29),2),\"\")","v":""}]
[]
["Cattle Pens"]
["Pen Type","Descrip-Construction",null,"M&S Component","Comp Descrip","Size/SF","Perimeter / Dimensions","Count #","Year Built","Material","Quality","Quality Rate","Condition","Cond Rate"]
[null,null,null,null,null,null,null,null,null,null,null,{"$f":"IF(K34=\"\",\"\",VLOOKUP(K34,Tables!$K$13:$L$26,2,FALSE))","v":""},null,{"$f":"IF(M34=\"\",\"\",VLOOKUP(M34,Tables!$K$29:$L$37,2,FALSE))","v":""}]
[null,null,null,null,null,null,null,null,null,null,null,{"$f":"IF(K35=\"\",\"\",VLOOKUP(K35,Tables!$K$13:$L$26,2,FALSE))","v":""},null,{"$f":"IF(M35=\"\",\"\",VLOOKUP(M35,Tables!$K$29:$L$37,2,FALSE))","v":""}]
[null,null,null,null,null,null,null,null,null,null,null,{"$f":"IF(K36=\"\",\"\",VLOOKUP(K36,Tables!$K$13:$L$26,2,FALSE))","v":""},null,{"$f":"IF(M36=\"\",\"\",VLOOKUP(M36,Tables!$K$29:$L$37,2,FALSE))","v":""}]
[null,null,null,null,null,null,null,null,null,null,null,{"$f":"IF(K37=\"\",\"\",VLOOKUP(K37,Tables!$K$13:$L$26,2,FALSE))","v":""},null,{"$f":"IF(M37=\"\",\"\",VLOOKUP(M37,Tables!$K$29:$L$37,2,FALSE))","v":""}]
[null,null,null,null,null,null,null,null,null,null,null,{"$f":"IF(K38=\"\",\"\",VLOOKUP(K38,Tables!$K$13:$L$26,2,FALSE))","v":""},null,{"$f":"IF(M38=\"\",\"\",VLOOKUP(M38,Tables!$K$29:$L$37,2,FALSE))","v":""}]
[null,null,null,null,null,null,null,null,null,null,null,{"$f":"IF(K39=\"\",\"\",VLOOKUP(K39,Tables!$K$13:$L$26,2,FALSE))","v":""},null,{"$f":"IF(M39=\"\",\"\",VLOOKUP(M39,Tables!$K$29:$L$37,2,FALSE))","v":""}]
[null,null,null,null,null,null,null,null,null,null,null,{"$f":"IF(K40=\"\",\"\",VLOOKUP(K40,Tables!$K$13:$L$26,2,FALSE))","v":""},null,{"$f":"IF(M40=\"\",\"\",VLOOKUP(M40,Tables!$K$29:$L$37,2,FALSE))","v":""}]
[null,null,null,null,null,null,null,null,null,null,null,{"$f":"IF(K41=\"\",\"\",VLOOKUP(K41,Tables!$K$13:$L$26,2,FALSE))","v":""},null,{"$f":"IF(M41=\"\",\"\",VLOOKUP(M41,Tables!$K$29:$L$37,2,FALSE))","v":""}]
[null,null,null,null,null,null,null,null,null,null,null,{"$f":"IF(K42=\"\",\"\",VLOOKUP(K42,Tables!$K$13:$L$26,2,FALSE))","v":""},null,{"$f":"IF(M42=\"\",\"\",VLOOKUP(M42,Tables!$K$29:$L$37,2,FALSE))","v":""}]
[null,null,null,null,null,null,null,null,null,null,null,{"$f":"IF(K43=\"\",\"\",VLOOKUP(K43,Tables!$K$13:$L$26,2,FALSE))","v":""},null,{"$f":"IF(M43=\"\",\"\",VLOOKUP(M43,Tables!$K$29:$L$37,2,FALSE))","v":""}]
[null,null,null,null,null,null,null,null,null,"Cattle Pens","Quality Average",{"$f":"IFERROR(ROUND(AVERAGE(L34:L43),2),\"\")","v":""},"Condition Average",{"$f":"IFERROR(ROUND(AVERAGE(N34:N43),2),\"\")","v":""}]
[]
["Feed Storage- Bins, Tanks, Bunkers,…..."]
["Feed Storage Type","Descrip-Construction",null,"M&S Component","Comp Descrip","Size/SF","Perimeter / Dimensions","Count #","Year Built","Capacity","Quality","Quality Rate","Condition","Cond Rate"]
[null,null,null,null,null,null,null,null,null,null,null,{"$f":"IF(K48=\"\",\"\",VLOOKUP(K48,Tables!$K$13:$L$26,2,FALSE))","v":""},null,{"$f":"IF(M48=\"\",\"\",VLOOKUP(M48,Tables!$K$29:$L$37,2,FALSE))","v":""}]
[null,null,null,null,null,null,null,null,null,null,null,{"$f":"IF(K49=\"\",\"\",VLOOKUP(K49,Tables!$K$13:$L$26,2,FALSE))","v":""},null,{"$f":"IF(M49=\"\",\"\",VLOOKUP(M49,Tables!$K$29:$L$37,2,FALSE))","v":""}]
[null,null,null,null,null,null,null,null,null,null,null,{"$f":"IF(K50=\"\",\"\",VLOOKUP(K50,Tables!$K$13:$L$26,2,FALSE))","v":""},null,{"$f":"IF(M50=\"\",\"\",VLOOKUP(M50,Tables!$K$29:$L$37,2,FALSE))","v":""}]
[null,null,null,null,null,null,null,null,null,null,null,{"$f":"IF(K51=\"\",\"\",VLOOKUP(K51,Tables!$K$13:$L$26,2,FALSE))","v":""},null,{"$f":"IF(M51=\"\",\"\",VLOOKUP(M51,Tables!$K$29:$L$37,2,FALSE))","v":""}]
[null,null,null,null,null,null,null,null,null,null,null,{"$f":"IF(K52=\"\",\"\",VLOOKUP(K52,Tables!$K$13:$L$26,2,FALSE))","v":""},null,{"$f":"IF(M52=\"\",\"\",VLOOKUP(M52,Tables!$K$29:$L$37,2,FALSE))","v":""}]
[null,null,null,null,null,null,null,null,null,null,null,{"$f":"IF(K53=\"\",\"\",VLOOKUP(K53,Tables!$K$13:$L$26,2,FALSE))","v":""},null,{"$f":"IF(M53=\"\",\"\",VLOOKUP(M53,Tables!$K$29:$L$37,2,FALSE))","v":""}]
[null,null,null,null,null,null,null,null,null,null,null,{"$f":"IF(K54=\"\",\"\",VLOOKUP(K54,Tables!$K$13:$L$26,2,FALSE))","v":""},null,{"$f":"IF(M54=\"\",\"\",VLOOKUP(M54,Tables!$K$29:$L$37,2,FALSE))","v":""}]
[null,null,null,null,null,null,null,null,null,null,null,{"$f":"IF(K55=\"\",\"\",VLOOKUP(K55,Tables!$K$13:$L$26,2,FALSE))","v":""},null,{"$f":"IF(M55=\"\",\"\",VLOOKUP(M55,Tables!$K$29:$L$37,2,FALSE))","v":""}]
[null,null,null,null,null,null,null,null,null,null,null,{"$f":"IF(K56=\"\",\"\",VLOOKUP(K56,Tables!$K$13:$L$26,2,FALSE))","v":""},null,{"$f":"IF(M56=\"\",\"\",VLOOKUP(M56,Tables!$K$29:$L$37,2,FALSE))","v":""}]
[null,null,null,null,null,null,null,null,null,null,null,{"$f":"IF(K57=\"\",\"\",VLOOKUP(K57,Tables!$K$13:$L$26,2,FALSE))","v":""},null,{"$f":"IF(M57=\"\",\"\",VLOOKUP(M57,Tables!$K$29:$L$37,2,FALSE))","v":""}]
[null,null,null,null,null,null,null,null,null,"Feed Storage","Quality Average",{"$f":"IFERROR(ROUND(AVERAGE(L48:L57),2),\"\")","v":""},"Condition Average",{"$f":"IFERROR(ROUND(AVERAGE(N48:N57),2),\"\")","v":""}]
[]
["Feed Processing  "]
["Feed Processing Type",null,null,"Descrip-Construction Major Repair Date",null,"Primary","Size/SF","Count #","Year Built","Capacity Tons / Hour","Quality","Quality Rate","Condition","Cond Rate"]
[{"$f":"IF(F16=\"\",\"\",F16)","v":""},null,null,null,null,"X",null,null,null,null,null,{"$f":"IF(K62=\"\",\"\",VLOOKUP(K62,Tables!$K$13:$L$26,2,FALSE))","v":""},null,{"$f":"IF(M62=\"\",\"\",VLOOKUP(M62,Tables!$K$29:$L$37,2,FALSE))","v":""}]
[null,null,null,null,null,null,null,null,null,null,null,{"$f":"IF(K63=\"\",\"\",VLOOKUP(K63,Tables!$K$13:$L$26,2,FALSE))","v":""},null,{"$f":"IF(M63=\"\",\"\",VLOOKUP(M63,Tables!$K$29:$L$37,2,FALSE))","v":""}]
[{"$f":"IF(F17=\"\",\"\",F17)","v":""},null,null,null,null,null,null,null,null,null,null,{"$f":"IF(K64=\"\",\"\",VLOOKUP(K64,Tables!$K$13:$L$26,2,FALSE))","v":""},null,{"$f":"IF(M64=\"\",\"\",VLOOKUP(M64,Tables!$K$29:$L$37,2,FALSE))","v":""}]
[null,null,null,null,null,null,null,null,null,null,null,{"$f":"IF(K65=\"\",\"\",VLOOKUP(K65,Tables!$K$13:$L$26,2,FALSE))","v":""},null,{"$f":"IF(M65=\"\",\"\",VLOOKUP(M65,Tables!$K$29:$L$37,2,FALSE))","v":""}]
[null,null,null,null,null,null,null,null,null,null,null,{"$f":"IF(K66=\"\",\"\",VLOOKUP(K66,Tables!$K$13:$L$26,2,FALSE))","v":""},null,{"$f":"IF(M66=\"\",\"\",VLOOKUP(M66,Tables!$K$29:$L$37,2,FALSE))","v":""}]
[null,null,null,null,null,null,null,null,null,"Feed Process","Quality Average",{"$f":"IFERROR(ROUND(AVERAGE(L62:L66),2),\"\")","v":""},"Condition Average",{"$f":"IFERROR(ROUND(AVERAGE(N62:N66),2),\"\")","v":""}]
["Notes:"]
[null,null,null,null,null,null,null,null,null,"Overall Feedlot","Quality Average",{"$f":"IFERROR(ROUND(AVERAGE(L20:L29,L34:L43,L48:L57,L62:L66),2),\"\")","v":""},"Condition Average",{"$f":"IFERROR(ROUND(AVERAGE(N20:N29,N34:N43,N48:N57,N62:N66),2),\"\")","v":""}]
[]
[null,null,null,null,null,null,null,null,null,"Overall Feedlot ","Quality Rate",{"$f":"IFERROR(IF(L69=4,4,IF(ABS(L69-HLOOKUP(Tables!O24,Tables!O24:O37,MATCH(L69,Tables!O25:O37,1)+2))<ABS(L69-HLOOKUP(Tables!O24,Tables!O24:O37,MATCH(L69,Tables!O25:O37,1)+1)),HLOOKUP(Tables!O24,Tables!O24:O37,MATCH(L69,Tables!O25:O37,1)+2),HLOOKUP(Tables!O24,Tables!O24:O37,MATCH(L69,Tables!O25:O37,1)+1))),\"\")","v":""},"Condition Rate",{"$f":"IF(N69=\"\",\"\",MROUND(N69,0.5))","v":""}]
[null,null,null,null,null,null,null,null,null,null,"Quality",{"$f":"_xlfn.IFNA(VLOOKUP(L71,Tables!L13:M26,2,FALSE),\"\")","v":""},"Condition",{"$f":"_xlfn.IFNA(VLOOKUP(N71,Tables!$L$29:$M$37,2,FALSE),\"\")","v":""}]
[]
[null,null,null,null,null,null,null,null,null,"Quality Ratings"]
[null,null,null,null,null,null,null,"The spreadsheet assigned \"Quality Rate\" is assigned by taking the \"Quality Average\" and using the table assignment that is closest to it. Example: if your \"Quality Average\" is 1.72, the assinged \"Quality Rate\" will be Average - (1.67)",null,"Very Good","Very Good -","Good +","Good","Good -"]
[null,null,null,null,null,null,null,null,null,4,3.67,3.33,3,2.67]
[null,null,null,null,null,null,null,null,null,"Average +","Average","Average -","Fair +","Fair"]
[null,null,null,null,null,null,null,null,null,2.33,2,1.67,1.33,1]
[null,null,null,null,null,null,null,null,null,"Fair -","Low +","Low","Low -"]
[null,null,null,null,null,null,null,null,null,0.84,0.7,0.6,0.5]
[]
[null,null,null,null,null,null,null,null,null,"Condition Ratings"]
[null,null,null,null,null,null,null,null,null,"Very Good","Good","Average +","Average","Average -"]
[null,null,null,null,null,null,null,null,null,4.5,4,3.5,3,2.5]
[null,null,null,null,null,null,null,null,null,"Fair","Fair-","Poor","Poor -"]
[null,null,null,null,null,null,null,null,null,2,1.5,1,0.5]

{"sheet":"Tables","index":3,"n_rows":129,"n_cols":101,"rows_kept":129,"cut":false,"hidden":false,"merged":[[0,0,0,13],[1,0,1,3],[0,42,0,51],[1,43,1,51],[0,54,0,63],[1,5,1,8],[1,10,1,13],[0,66,0,75],[0,78,0,87],[20,54,20,55],[20,57,20,58],[0,90,0,99],[1,55,1,63],[1,67,1,75],[1,79,1,87],[1,91,1,99],[23,23,23,25],[23,26,23,28],[21,0,21,1],[8,19,8,40],[23,32,23,35],[11,32,11,33],[11,20,11,21],[11,23,11,24],[11,26,11,27],[11,29,11,30],[10,0,10,8],[35,1,35,2],[12,1,12,3],[12,6,12,8],[121,17,121,19],[122,17,122,19],[27,10,27,11],[34,1,34,2],[2,1,2,3],[2,6,2,8],[2,11,2,13],[11,0,11,3],[11,5,11,8],[11,10,11,11]]}
["Variations of Steam Flake Mill Facilities",null,null,null,null,null,null,null,null,null,null,null,null,null,null,null,null,null,null,null,null,null,null,null,null,null,null,null,null,null,null,null,null,null,null,null,null,null,null,null,null,null,"Weigh and Mix/Full Batch in Mill",null,null,null,null,null,null,null,null,null,null,null,"Weigh System in Mill, Mix Batch in Feed Truck/Stationary Mixer",null,null,null,null,null,null,null,null,null,null,null,"Bunker System-Weight and Mix Batch in Feed-Truck/Stationary Mixer",null,null,null,null,null,null,null,null,null,null,null,"Dry Roll Mill Facility",null,null,null,null,null,null,null,null,null,null,null,"Minimum Feed Processing Facility"]
["Weigh and Mix/Full Batch in Mill",null,null,null,null,"Weigh System in Mill, Mix Batch in Feed Truck/Stationary Mixer",null,null,null,null,"Bunker System—Weigh and Mix Batch in Feed-Truck/Stationary Mixer",null,null,null,null,null,null,null,null,null,null,null,null,null,null,null,null,null,null,null,null,null,null,null,null,null,null,null,null,null,null,null,null,"Condition",null,null,null,null,null,null,null,null,null,null,null,"Condition",null,null,null,null,null,null,null,null,null,null,null,"Condition",null,null,null,null,null,null,null,null,null,null,null,"Condition",null,null,null,null,null,null,null,null,null,null,null,"Condition"]
[null,"Condition",null,null,null,null,"Condition",null,null,null,null,"Condition",null,null,null,null,null,null,null,null,null,null,null,null,null,null,null,null,null,null,null,null,null,null,null,null,null,null,null,null,null,null,"Quality","Poor -","Poor","Fair -","Fair","Average -","Average","Average +","Good","Very Good","Interval",null,"Quality","Poor -","Poor","Fair -","Fair","Average -","Average","Average +","Good","Very Good","Interval",null,"Quality","Poor -","Poor","Fair -","Fair","Average -","Average","Average +","Good","Very Good","Interval",null,"Quality","Poor -","Poor","Fair -","Fair","Average -","Average","Average +","Good","Very Good","Interval",null,"Quality","Poor -","Poor","Fair -","Fair","Average -","Average","Average +","Good","Very Good","Interval"]
["Quality","Poor -","Very Good","Midpt",null,"Quality","Poor -","Very Good","Midpt",null,"Quality","Poor -","Very Good","Midpt",null,null,null,null,null,null,null,null,null,null,null,null,null,null,null,null,null,null,null,null,null,null,null,null,null,null,null,null,"Very Good",140,{"$f":"$AS$18*$BA4+AR4","v":145},{"$f":"$AS$18*$BA4+AS4","v":150},155,160,165,170,175,180,{"$f":"(AZ4-AR4)/8","v":5},null,"Very Good",130,{"$f":"$BE$18*$BM4+BD4","v":135},140,145,150,155,160,165,170,{"$f":"(BL4-BD4)/8","v":5},null,"Very Good",125,{"$f":"$BQ$18*$BY4+BP4","v":130},135,140,145,150,155,160,165,{"$f":"(BX4-BP4)/8","v":5},null,"Very Good",115,{"$f":"$CC$18*$CK4+CB4","v":121.25},127.5,133.75,140,146.25,152.5,158.75,165,{"$f":"(CJ4-CB4)/8","v":6.25},null,"Very Good",60,{"$f":"$CO$18*$CW4+CN4","v":63.75},67.5,71.25,75,78.75,82.5,86.25,90,{"$f":"(CV4-CN4)/8","v":3.75}]
["Very Good",140,180,160,null,"Very Good",130,170,150,null,"Very Good",125,165,145,null,null,null,null,null,null,null,null,null,null,null,null,null,null,null,null,null,null,null,null,null,null,null,null,null,null,null,null,"Very Good -",{"$f":"(AR4-AR7)/3*2+AR7","v":126.66666666666667},{"$f":"$AS$18*$BA5+AR5","v":131.25},135.83333333333334,140.41666666666669,145.00000000000003,149.58333333333337,154.16666666666671,158.75000000000006,{"$f":"(AZ4-AZ7)/3*2+AZ7","v":163.33333333333334},{"$f":"(AZ5-AR5)/8","v":4.5833333333333339},null,"Very Good -",{"$f":"(BD4-BD7)/3*2+BD7","v":118.33333333333333},123.125,127.91666666666667,132.70833333333334,137.5,142.29166666666666,147.08333333333331,151.87499999999997,{"$f":"(BL4-BL7)/3*2+BL7","v":156.66666666666666},4.7916666666666661,null,"Very Good -",{"$f":"(BP4-BP7)/3*2+BP7","v":115},119.58333333333333,124.16666666666666,128.75,133.33333333333334,137.91666666666669,142.50000000000003,147.08333333333337,{"$f":"(BX4-BX7)/3*2+BX7","v":151.66666666666666},4.5833333333333321,null,"Very Good -",{"$f":"(CB4-CB7)/3*2+CB7","v":103.33333333333333},108.95833333333333,114.58333333333333,120.20833333333333,125.83333333333333,131.45833333333334,137.08333333333334,142.70833333333334,{"$f":"(CJ4-CJ7)/3*2+CJ7","v":148.33333333333334},5.6250000000000018,null,"Very Good -",{"$f":"(CN4-CN7)/3*2+CN7","v":53.333333333333336},56.666666666666671,60.000000000000007,63.333333333333343,66.666666666666671,70,73.333333333333329,76.666666666666657,{"$f":"(CV4-CV7)/3*2+CV7","v":80},3.333333333333333]
["Good",100,130,115,null,"Good",95,130,115,null,"Good",95,125,110,null,null,null,null,null,null,null,null,null,null,null,null,null,null,null,null,null,null,null,null,null,null,null,null,null,null,null,null,"Good +",{"$f":"(AR4-AR7)/3*1+AR7","v":113.33333333333333},117.5,121.66666666666667,125.83333333333334,130,134.16666666666666,138.33333333333331,142.49999999999997,{"$f":"(AZ4-AZ7)/3*1+AZ7","v":146.66666666666666},4.1666666666666661,null,"Good +",{"$f":"(BD4-BD7)/3*1+BD7","v":106.66666666666667},111.25,115.83333333333333,120.41666666666666,124.99999999999999,129.58333333333331,134.16666666666666,138.75,{"$f":"(BL4-BL7)/3*1+BL7","v":143.33333333333334},4.5833333333333339,null,"Good +",{"$f":"(BP4-BP7)/3*1+BP7","v":105},109.16666666666667,113.33333333333334,117.50000000000001,121.66666666666669,125.83333333333336,130.00000000000003,134.16666666666669,{"$f":"(BX4-BX7)/3*1+BX7","v":138.33333333333334},4.1666666666666679,null,"Good +",{"$f":"(CB4-CB7)/3*1+CB7","v":91.666666666666671},96.666666666666671,101.66666666666667,106.66666666666667,111.66666666666667,116.66666666666667,121.66666666666667,126.66666666666667,{"$f":"(CJ4-CJ7)/3*1+CJ7","v":131.66666666666666},4.9999999999999982,null,"Good +",{"$f":"(CN4-CN7)/3*1+CN7","v":46.666666666666664},49.583333333333329,52.499999999999993,55.416666666666657,58.333333333333321,61.249999999999986,64.166666666666657,67.083333333333329,{"$f":"(CV4-CV7)/3*1+CV7","v":70},2.916666666666667]
["Average",75,90,85,null,"Average",75,95,85,null,"Average",70,90,80,null,null,null,null,null,null,null,null,null,null,null,null,null,null,null,null,null,null,null,null,null,null,null,null,null,null,null,null,"Good ",100,103.75,107.5,111.25,115,118.75,122.5,126.25,130,3.75,null,"Good ",95,{"$f":"$BE$18*$BM7+BD7","v":99.375},{"$f":"$BE$18*$BM7+BE7","v":103.75},108.125,112.5,116.875,121.25,125.625,130,{"$f":"(BL7-BD7)/8","v":4.375},null,"Good ",95,{"$f":"$BQ$18*$BY7+BP7","v":98.75},{"$f":"$BQ$18*$BY7+BQ7","v":102.5},106.25,110,113.75,117.5,121.25,125,{"$f":"(BX7-BP7)/8","v":3.75},null,"Good ",80,{"$f":"$CC$18*$CK7+CB7","v":84.375},{"$f":"$CC$18*$CK7+CC7","v":88.75},93.125,97.5,101.875,106.25,110.625,115,{"$f":"(CJ7-CB7)/8","v":4.375},null,"Good ",40,{"$f":"$CO$18*$CW7+CN7","v":42.5},{"$f":"$CO$18*$CW7+CO7","v":45},47.5,50,52.5,55,57.5,60,{"$f":"(CV7-CN7)/8","v":2.5}]
["Fair",50,75,65,null,"Fair",50,75,65,null,"Fair",45,70,60,null,null,null,null,null,null,null,null,null,null,null,null,null,null,null,null,null,null,null,null,null,null,null,null,null,null,null,null,"Good -",{"$f":"(AR7-AR10)/3*2+AR10","v":91.666666666666671},94.791666666666671,97.916666666666671,101.04166666666667,104.16666666666667,107.29166666666667,110.41666666666667,113.54166666666667,{"$f":"(AZ7-AZ10)/3*2+AZ10","v":116.66666666666667},3.125,null,"Good -",{"$f":"(BD7-BD10)/3*2+BD10","v":88.333333333333329},{"$f":"$BE$18*$BM8+BD8","v":92.083333333333329},95.833333333333329,99.583333333333329,103.33333333333333,107.08333333333333,110.83333333333333,114.58333333333333,{"$f":"(BL7-BL10)/3*2+BL10","v":118.33333333333333},{"$f":"(BL8-BD8)/8","v":3.75},null,"Good -",{"$f":"(BP7-BP10)/3*2+BP10","v":86.666666666666671},{"$f":"$BQ$18*$BY8+BP8","v":90},93.333333333333329,96.666666666666657,99.999999999999986,103.33333333333331,106.66666666666664,109.99999999999997,{"$f":"(BX7-BX10)/3*2+BX10","v":113.33333333333333},{"$f":"(BX8-BP8)/8","v":3.3333333333333321},null,"Good -",{"$f":"(CB7-CB10)/3*2+CB10","v":71.666666666666671},{"$f":"$CC$18*$CK8+CB8","v":75.625},79.583333333333329,83.541666666666657,87.499999999999986,91.458333333333314,95.416666666666643,99.374999999999972,{"$f":"(CJ7-CJ10)/3*2+CJ10","v":103.33333333333333},{"$f":"(CJ8-CB8)/8","v":3.9583333333333321},null,"Good -",{"$f":"(CN7-CN10)/3*2+CN10","v":35},{"$f":"$CO$18*$CW8+CN8","v":37.083333333333336},39.166666666666671,41.250000000000007,43.333333333333343,45.416666666666679,47.500000000000014,49.58333333333335,{"$f":"(CV7-CV10)/3*2+CV10","v":51.666666666666671},{"$f":"(CV8-CN8)/8","v":2.0833333333333339}]
["Low",30,50,40,null,"Low",25,50,40,null,"Low",25,45,35,null,null,null,null,null,"V Lookup Tables",null,null,null,null,null,null,null,null,null,null,null,null,null,null,null,null,null,null,null,null,null,null,"Average +",{"$f":"(AR7-AR10)/3*1+AR10","v":83.333333333333329},85.833333333333329,88.333333333333329,90.833333333333329,93.333333333333329,95.833333333333329,98.333333333333329,100.83333333333333,{"$f":"(AZ7-AZ10)/3*1+AZ10","v":103.33333333333333},2.5,null,"Average +",{"$f":"(BD7-BD10)/3*1+BD10","v":81.666666666666671},84.791666666666671,87.916666666666671,91.041666666666671,94.166666666666671,97.291666666666671,100.41666666666667,103.54166666666667,{"$f":"(BL7-BL10)/3*1+BL10","v":106.66666666666667},3.125,null,"Average +",{"$f":"(BP7-BP10)/3*1+BP10","v":78.333333333333329},81.25,84.166666666666671,87.083333333333343,90.000000000000014,92.916666666666686,95.833333333333357,98.750000000000028,{"$f":"(BX7-BX10)/3*1+BX10","v":101.66666666666667},{"$f":"(BX9-BP9)/8","v":2.9166666666666679},null,"Average +",{"$f":"(CB7-CB10)/3*1+CB10","v":63.333333333333336},66.875,70.416666666666671,73.958333333333343,77.500000000000014,81.041666666666686,84.583333333333357,88.125000000000028,{"$f":"(CJ7-CJ10)/3*1+CJ10","v":91.666666666666671},{"$f":"(CJ9-CB9)/8","v":3.541666666666667},null,"Average +",{"$f":"(CN7-CN10)/3*1+CN10","v":30},31.666666666666668,33.333333333333336,35,36.666666666666664,38.333333333333329,39.999999999999993,41.666666666666657,{"$f":"(CV7-CV10)/3*1+CV10","v":43.333333333333336},{"$f":"(CV9-CN9)/8","v":1.666666666666667}]
[null,"poor -","very good",null,null,null,"poor -","very good",null,null,null,"poor -","very good",null,null,null,null,null,null,null,null,null,null,null,null,null,null,null,null,null,null,null,null,null,null,null,null,null,null,null,null,null,"Average  ",75,76.875,78.75,80.625,82.5,84.375,86.25,88.125,90,1.875,null,"Average  ",75,77.5,80,82.5,85,87.5,90,92.5,95,2.5,null,"Average  ",70,72.5,75,77.5,80,82.5,85,87.5,90,2.5,null,"Average  ",55,58.125,61.25,64.375,67.5,70.625,73.75,76.875,80,3.125,null,"Average  ",25,26.25,27.5,28.75,30,31.25,32.5,33.75,35,1.25]
["Variations of Non-Steam Flake Facilities",null,null,null,null,null,null,null,null,null,null,null,null,null,null,null,null,null,null,null,"column 2",null,null,"column 5",null,null,"column 8",null,null,"column 11",null,null,"column 14",null,null,null,null,null,null,"Vlookup Columns",null,null,"Average -",{"$f":"(AR10-AR13)/3*2+AR13","v":66.666666666666671},68.958333333333343,71.250000000000014,73.541666666666686,75.833333333333357,78.125000000000028,80.4166666666667,82.708333333333371,{"$f":"(AZ10-AZ13)/3*2+AZ13","v":85},2.2916666666666661,null,"Average -",{"$f":"(BD10-BD13)/3*2+BD13","v":66.666666666666671},69.375,72.083333333333329,74.791666666666657,77.499999999999986,80.208333333333314,82.916666666666643,85.624999999999972,{"$f":"(BL10-BL13)/3*2+BL13","v":88.333333333333329},2.7083333333333321,null,"Average -",{"$f":"(BP10-BP13)/3*2+BP13","v":61.666666666666671},64.375,67.083333333333329,69.791666666666657,72.499999999999986,75.208333333333314,77.916666666666643,80.624999999999972,{"$f":"(BX10-BX13)/3*2+BX13","v":83.333333333333329},2.7083333333333321,null,"Average -",{"$f":"(CB10-CB13)/3*2+CB13","v":50},52.708333333333336,55.416666666666671,58.125000000000007,60.833333333333343,63.541666666666679,66.250000000000014,68.958333333333343,{"$f":"(CJ10-CJ13)/3*2+CJ13","v":71.666666666666671},2.7083333333333339,null,"Average -",{"$f":"(CN10-CN13)/3*2+CN13","v":21.666666666666668},22.916666666666668,24.166666666666668,25.416666666666668,26.666666666666668,27.916666666666668,29.166666666666668,30.416666666666668,{"$f":"(CV10-CV13)/3*2+CV13","v":31.666666666666668},1.25]
["Dry Roll Mill Facility",null,null,null,null,"Minimum Feed Processing Facility",null,null,null,null,"Commercial Quality Ratings",null,null,null,null,null,null,null,null,null,"Weigh and Mix/Full Batch in Mill ",null,null,"Weigh System in Mill, Mix Batch in Feed Truck ",null,null,"Bunker System—Weigh and Mix Batch in Feed-Truck ",null,null,"Dry Roll Mill Facility",null,null,"Minimum Feed Processing Facility",null,null,null,"Physical Condition","Steps",null,"Table","Column",null,"Fair +",{"$f":"(AR10-AR13)/3*1+AR13","v":58.333333333333336},61.041666666666671,63.750000000000007,66.458333333333343,69.166666666666671,71.875,74.583333333333329,77.291666666666657,{"$f":"(AZ10-AZ13)/3*1+AZ13","v":80},2.708333333333333,null,"Fair +",{"$f":"(BD10-BD13)/3*1+BD13","v":58.333333333333336},61.25,64.166666666666671,67.083333333333343,70.000000000000014,72.916666666666686,75.833333333333357,78.750000000000028,{"$f":"(BL10-BL13)/3*1+BL13","v":81.666666666666671},2.916666666666667,null,"Fair +",{"$f":"(BP10-BP13)/3*1+BP13","v":53.333333333333336},56.25,59.166666666666664,62.083333333333329,65,67.916666666666671,70.833333333333343,73.750000000000014,{"$f":"(BX10-BX13)/3*1+BX13","v":76.666666666666671},2.916666666666667,null,"Fair +",{"$f":"(CB10-CB13)/3*1+CB13","v":45},47.291666666666664,49.583333333333329,51.874999999999993,54.166666666666657,56.458333333333321,58.749999999999986,61.04166666666665,{"$f":"(CJ10-CJ13)/3*1+CJ13","v":63.333333333333336},2.291666666666667,null,"Fair +",{"$f":"(CN10-CN13)/3*1+CN13","v":18.333333333333332},19.583333333333332,20.833333333333332,22.083333333333332,23.333333333333332,24.583333333333332,25.833333333333332,27.083333333333332,{"$f":"(CV10-CV13)/3*1+CV13","v":28.333333333333332},1.25]
[null,"Condition",null,null,null,null,"Condition",null,null,null,"Very Good",4,"Very Good",null,null,null,null,null,null,"Quality","condition",null,null,null,null,null,null,null,null,null,null,null,null,null,null,null,null,null,null,null,null,null,"Fair  ",50,53.125,56.25,59.375,62.5,65.625,68.75,71.875,75,3.125,null,"Fair  ",50,53.125,56.25,59.375,62.5,65.625,68.75,71.875,75,3.125,null,"Fair  ",45,48.125,51.25,54.375,57.5,60.625,63.75,66.875,70,3.125,null,"Fair  ",40,41.875,43.75,45.625,47.5,49.375,51.25,53.125,55,1.875,null,"Fair  ",15,16.25,17.5,18.75,20,21.25,22.5,23.75,25,1.25]
["Quality","Poor -","Very Good","Midpt",null,"Quality","Poor -","Very Good","Midpt",null,"Very Good -",3.67,"Very Good -",null,null,null,null,"High",null,null,"Low","High","Diff","Low","High","Diff","Low","High","Diff","Low","High","Diff","Low","High","Diff",null,"Very Good",8,null,"Steam Flake-Weigh & Mix Mill- Full Batch Mill",2,null,"Fair -",{"$f":"(AR13-AR16)/3*2+AR16","v":43.333333333333336},46.25,49.166666666666664,52.083333333333329,54.999999999999993,57.916666666666657,60.833333333333321,63.749999999999986,{"$f":"(AZ13-AZ16)/3*2+AZ16","v":66.666666666666671},2.916666666666667,null,"Fair -",{"$f":"(BD13-BD16)/3*2+BD16","v":41.666666666666671},44.791666666666671,47.916666666666671,51.041666666666671,54.166666666666671,57.291666666666671,60.416666666666671,63.541666666666671,{"$f":"(BL13-BL16)/3*2+BL16","v":66.666666666666671},3.125,null,"Fair -",{"$f":"(BP13-BP16)/3*2+BP16","v":38.333333333333336},41.25,44.166666666666664,47.083333333333329,49.999999999999993,52.916666666666657,55.833333333333321,58.749999999999986,{"$f":"(BX13-BX16)/3*2+BX16","v":61.666666666666671},2.916666666666667,null,"Fair -",{"$f":"(CB13-CB16)/3*2+CB16","v":33.333333333333336},35.208333333333336,37.083333333333336,38.958333333333336,40.833333333333336,42.708333333333336,44.583333333333336,46.458333333333336,{"$f":"(CJ13-CJ16)/3*2+CJ16","v":48.333333333333336},1.875,null,"Fair -",{"$f":"(CN13-CN16)/3*2+CN16","v":11.666666666666668},12.916666666666668,14.166666666666668,15.416666666666668,16.666666666666668,17.916666666666668,19.166666666666668,20.416666666666668,{"$f":"(CV13-CV16)/3*2+CV16","v":21.666666666666668},1.25]
["Very Good",115,165,140,null,"Very Good",60,90,75,null,"Good +",3.33,"Good +",null,null,null,null,null,null,"Very Good",130,160,{"$f":"V15-U15","v":30},120,165,{"$f":"Y15-X15","v":45},125,165,{"$f":"AB15-AA15","v":40},110,155,{"$f":"AE15-AD15","v":45},85,125,{"$f":"AH15-AG15","v":40},null,"Good",7,null,"Steam Flake- Weigh Mill- Mix Feed Truck",5,null,"Low +",{"$f":"(AR13-AR16)/3*1+AR16","v":36.666666666666664},39.375,42.083333333333336,44.791666666666671,47.500000000000007,50.208333333333343,52.916666666666679,55.625000000000014,{"$f":"(AZ13-AZ16)/3*1+AZ16","v":58.333333333333336},2.7083333333333339,null,"Low +",{"$f":"(BD13-BD16)/3*1+BD16","v":33.333333333333336},36.458333333333336,39.583333333333336,42.708333333333336,45.833333333333336,48.958333333333336,52.083333333333336,55.208333333333336,{"$f":"(BL13-BL16)/3*1+BL16","v":58.333333333333336},3.125,null,"Low +",{"$f":"(BP13-BP16)/3*1+BP16","v":31.666666666666668},34.375,37.083333333333336,39.791666666666671,42.500000000000007,45.208333333333343,47.916666666666679,50.625000000000014,{"$f":"(BX13-BX16)/3*1+BX16","v":53.333333333333336},2.7083333333333335,null,"Low +",{"$f":"(CB13-CB16)/3*1+CB16","v":26.666666666666668},28.541666666666668,30.416666666666668,32.291666666666664,34.166666666666664,36.041666666666664,37.916666666666664,39.791666666666664,{"$f":"(CJ13-CJ16)/3*1+CJ16","v":41.666666666666664},1.8749999999999996,null,"Low +",{"$f":"(CN13-CN16)/3*1+CN16","v":8.3333333333333339},9.5833333333333339,10.833333333333334,12.083333333333334,13.333333333333334,14.583333333333334,15.833333333333334,17.083333333333332,{"$f":"(CV13-CV16)/3*1+CV16","v":18.333333333333332},1.2499999999999998]
["Good",80,115,100,null,"Good",40,60,50,null,"Good ",3,"Good ",null,null,null,null,null,null,"Good",90,120,{"$f":"V16-U16","v":30},90,120,30,100,130,30,70,105,35,50,80,30,null,"Average + ",6,null,"Steam Flake- Bunker System- Weigh & Mix Feed Truck",8,null,"Low  ",30,32.5,35,37.5,40,42.5,45,47.5,50,2.5,null,"Low  ",25,28.125,31.25,34.375,37.5,40.625,43.75,46.875,50,3.125,null,"Low  ",25,27.5,30,32.5,35,37.5,40,42.5,45,2.5,null,"Low  ",20,21.875,23.75,25.625,27.5,29.375,31.25,33.125,35,1.875,null,"Low  ",5,6.25,7.5,8.75,10,11.25,12.5,13.75,15,1.25]
["Average",55,80,70,null,"Average",25,35,30,null,"Good -",2.67,"Good -",null,null,null,null,null,null,"Average",70,85,15,75,95,20,80,95,15,50,75,25,35,45,10,null,"Average  ",5,null,"Dry Roll- Weigh & Mix Feed Truck",11,null,"Low -",{"$f":"AR16-((AR13-AR16)/3)","v":23.333333333333332},25.625,27.916666666666668,30.208333333333336,32.5,34.791666666666664,37.083333333333329,39.374999999999993,{"$f":"AZ16-((AZ13-AZ16)/3)","v":41.666666666666664},{"$f":"(AZ17-AR17)/8","v":2.2916666666666665},null,"Low -",{"$f":"BD16-(BD13-BD16)/3","v":16.666666666666664},19.791666666666664,22.916666666666664,26.041666666666664,29.166666666666664,32.291666666666664,35.416666666666664,38.541666666666664,{"$f":"BL16-(BL13-BL16)/3","v":41.666666666666664},{"$f":"(BL17-BD17)/8","v":3.125},null,"Low -",{"$f":"BP16-(BP13-BP16)/3","v":18.333333333333332},20.625,22.916666666666668,25.208333333333336,27.500000000000004,29.791666666666671,32.083333333333336,34.375,{"$f":"BX16-(BX13-BX16)/3","v":36.666666666666664},2.2916666666666665,null,"Low -",{"$f":"CB16-(CB13-CB16)/3","v":13.333333333333332},{"$f":"$CC$18*$CK17+CB17","v":15.208333333333332},{"$f":"$CC$18*$CK17+CC17","v":17.083333333333332},18.958333333333332,20.833333333333332,22.708333333333332,24.583333333333332,26.458333333333332,{"$f":"CJ16-(CJ13-CJ16)/3","v":28.333333333333332},{"$f":"(CJ17-CB17)/8","v":1.875},null,"Low -",{"$f":"CN16-(CN13-CN16)/3","v":1.6666666666666665},2.9166666666666665,4.1666666666666661,5.4166666666666661,6.6666666666666661,7.9166666666666661,9.1666666666666661,10.416666666666666,{"$f":"CV16-(CV13-CV16)/3","v":11.666666666666666},{"$f":"(CV17-CN17)/8","v":1.25}]
["Fair",40,55,50,null,"Fair",15,25,20,null,"Average +",2.33,"Average +",null,null,null,null,null,null,"Fair",40,65,25,45,65,20,45,70,25,35,45,10,15,30,15,null,"Average -",4,null,"Min Feed Process- No Mill Facility",14,null,"Number of Steps",null,1,{"$f":"AS18+1","v":2},{"$f":"AT18+1","v":3},4,5,6,7,null,null,null,"Number of Steps",null,1,2,3,4,5,6,7,null,null,null,"Number of Steps",null,1,2,3,4,5,6,7,null,null,null,"Number of Steps",null,1,2,3,4,5,6,7,null,null,null,"Number of Steps",null,1,2,3,4,5,6,7]
["Low",20,35,30,null,"Low",5,15,10,null,"Average  ",2,"Average  ",null,null,null,null,null,null,"Low",25,45,20,20,45,25,25,45,20,15,25,10,5,15,10,null,"Fair",3,null,null,null,null,1,null,null,null,null,null,null,null,null,null,null,null,13,null,null,null,null,null,null,null,null,null,null,null,25,null,null,null,null,null,null,null,null,null,null,null,37,null,null,null,null,null,null,null,null,null,null,null,49]
[null,"poor -","very good",null,null,null,"poor -","very good",null,null,"Average -",1.67,"Average -",null,null,null,null,null,null,null,null,null,null,null,null,null,null,null,null,null,null,null,null,null,null,null,"Fair -",2]
["Added very good category interpolation for 2026 on all mill type facilities besides weight and mix/full batch in mill",null,null,null,null,null,null,null,null,null,"Fair +",1.33,"Fair +",null,null,null,null,null,null,null,null,null,null,null,null,null,null,null,null,null,null,null,null,null,null,null,"Poor",1,null,null,null,null,null,null,null,null,null,null,null,null,null,null,null,null,"Condition Ratings",null,null,"Vlookup Columns"]
["Land Values",null,null,null,null,null,null,null,null,null,"Fair  ",1,"Fair  ",null,null,null,null,"Low",null,null,null,null,null,null,null,null,null,null,null,null,null,null,null,null,null,null,"Poor - ",0,null,null,null,null,null,null,null,null,null,null,null,null,null,null,null,null,"Very Good",10,null,"Table","Column"]
["KS Ag Land Values & Trends - Pasture/Hay",null,null,null,null,null,null,null,null,null,"Fair -",0.84,"Fair -",null,null,null,null,null,null,null,null,null,null,null,null,null,null,null,null,null,null,null,null,null,null,null,null,null,null,null,null,null,null,null,null,null,null,null,null,null,null,null,null,null,"Good",9,null,"Steam Flake-Weigh & Mix Mill-Full Batch Mill",1]
["Northwest 10",1689,null,null,null,null,null,null,null,null,"Low +",0.7,"Low +",null,"H",null,null,null,null,"M&S Const Class","Cattle Pen Types",null,null,"Cattle Pen M&S Components- separated",null,null,"Cattle Pen M&S Comp combo",null,null,null,"Improvement Type",null,"Improvement M&S Occupancies-sort",null,null,null,null,null,"Improvement M&S Occupancies-numeric",null,null,"Alpha # combined",null,null,null,null,null,null,null,null,null,null,null,null,"Average + ",8,null,"Steam Flake- Weigh Mill- Mix Feed Truck/Stationary Mixer",13]
["North Central 40",2496,null,null,null,null,null,null,null,null,"Low  ",0.6,"Low  ",null,0.6,null,null,null,null,"C - Masonry Bearing ","Pen Fencing               ",null,null,1104,"Feeder, Fenceline, 8' Long",null,"Feeder, Fenceline, 8' Long- 1104",null,null,null,"Barn",null,null,"Barn",305,"Barn",null,null,133,"Prefabricated Storage Shed",null,"Arena Shelter- 184",null,null,null,null,null,null,null,null,null,null,null,null,"Average  ",7,null,"Steam Flake- Bunker System- Weigh & Mix Feed Truck/Stationary Mixer",25]
["Northeast 70",4679,null,null,null,null,null,null,null,null,"Low -",0.5,"Low -",null,0.7,null,null,null,null,"D - Wood or Steel Stud ","Size & Drainage",null,null,1105,"Feeder, Fenceline, Each Additional 8'",null,"Feeder, Fenceline, Each Additional 8'- 1105",null,null,null,"Building- Equipment, Storage, Utility",null,null,null,null,null,null,null,174,"Pavilon",null,"Arena, Horse- 428",null,null,null,null,null,null,null,null,null,null,null,null,"Average -",6,null,"Dry Roll- Weigh & Mix Feed Truck",37]
["West Central 20",1348,null,null,null,null,null,null,null,null,null,null,null,null,0.84,null,null,null,null,"H - Hoop Frame","Bunks, Aprons, Headrails",null,null,1120,"Feeder, Feed Rack",null,"Feeding Trough, 1-Sided, Concrete- 1130",null,null,null,"Hospital",null,null,null,null,null,null,null,184,"Arena Shelter",null,"Barn- 305",null,null,null,null,null,null,null,null,null,null,null,null,"Fair",5,null,"Min Feed Process- No Mill Facility",49]
["Central 50",2376,null,null,null,null,null,null,null,null,"Physical Condition Ratings",null,null,null,1,null,null,null,null,"P - Pole Frame (Wood)","Waterers, Slabs                     ",null,null,1130,"Feeding Trough, 1-Sided, Concrete",null,"Feeding Trough, 2-Sided, Concrete- 1133",null,null,null,"Office",null,null,null,469,"Barn, Freestall",null,null,305,"Barn",null,"Barn, Feeder- 561",null,null,null,null,null,null,null,null,null,null,null,null,"Fair -",4]
["East Central 80",3954,null,null,null,null,null,null,null,null,"Very Good",4.5,"Very Good",null,1.33,null,null,null,null,"S - Metal Frame ","Corrals, Working Facilities",null,null,1131,"Feeding Trough, 1-Sided, Steel",null,"Feeding Trough, Roof, Metal Structure-1136",null,null,null,"Quonset",null,null,null,561,"Barn, Feeder",null,null,378,"Stable",null,"Cabin, Transient Labor- 394",null,null,null,null,null,null,null,null,null,null,null,null,"Poor",3]
["Southwest 30",1475,null,null,null,null,null,null,null,null,"Good",4,"Good",null,1.67,null,null,null,null,"W - Metal Slant Frame ","Other",null,null,1132,"Feeding Trough, 1-Sided, Wood",null,"Feeding Trough, Roof, Wood Structure- 1137",null,null,null,"Scales",null,null,null,null,null,null,null,391,"Material Storage Building",null,"Commercial Utility Building, Light- 471",null,null,null,null,null,null,null,null,null,null,null,null,"Poor - ",2]
["South Central 60",2368,null,null,null,null,null,null,null,null,"Average + ",3.5,"Average + ",null,{"$f":"O28+1","v":2},null,null,null,null,null,null,null,null,1133,"Feeding Trough, 2-Sided, Concrete",null,"Fence, 8’ Gate- 1390",null,null,null,"Shed- Equipment, Storage, Utility",null,null,"Building",391,"Material Storage Building",null,null,null,null,null,"Commercial Utility, Arch-Rib, Quonset- 555"]
["Southeast 90",3219,null,null,null,null,null,null,null,null,"Average  ",3,"Average  ",null,{"$f":"O29+1","v":2.33},null,null,null,null,"Feed Storage Type",null,null,null,1134,"Feeding Trough, 2-Sided, Steel",null,"Fence, Gate, Each Additional 4’- 1391",null,null,null,"Shelter",null,null,null,406,"Storage Warehouse",null,null,394,"Cabin, Transient Labor",null,"Corn Crib Building- 524"]
[null,null,null,null,null,null,null,null,null,null,"Average -",2.5,"Average -",null,2.67,null,null,null,null,"Grain",null,null,null,1135,"Feeding Trough, 2-Sided, Wood",null,"Fence, Pipe, Cable Rails- 1387",null,null,null,"Other",null,null,null,421,"Grain Storage, Utility",null,null,406,"Storage Warehouse",null,"Equipment (Shop) Building- 470"]
["KSU- KS Ag Land Values & Trends",null,null,null,null,null,null,null,null,null,"Fair",2,"Fair",null,3,null,null,null,null,"High Moisture Corn",null,null,null,1136,"Feeding Trough, Roof, Metal Structure",null,"Fence, Pipe, Pipe Rails- 1388",null,null,null,null,null,null,null,470,"Equipment (Shop) Building",null,null,421,"Grain Storage, Utility",null,"Equipment Shed- 472"]
["Publication","Feedlot Guide Use",null,null,null,null,null,null,null,null,"Fair -",1.5,"Fair -",null,3.33,null,null,null,null,"Ensilage",null,null,null,1137,"Feeding Trough, Roof, Wood Structure",null,"Floor-Type Flooding Flush System- 1184",null,null,null,null,null,null,null,471,"Commercial Utility Building, Light",null,null,null,null,null,"Farm Commodity Storage Shed- 562"]
[2024,2026,null,null,null,null,null,null,null,null,"Poor",1,"Poor",null,3.67,null,null,null,null,"Hay",null,null,null,1138,"Sloped Feed Rail Guard, Galvanized",null,"Liquid Manure Tank, Concrete Rectangular- 1170",null,null,null,null,null,null,null,476,"Farm Implement Building",null,null,428,"Arena, Horse",null,"Farm Implement Arch-Rib, Quonset- 558"]
[null,null,null,null,null,null,null,null,null,null,"Poor - ",0.5,"Poor - ",null,4,null,null,null,null,"Protein",null,null,null,1139,"Sloped Feed Rail Guard, Zinc Coated",null,"Liquid Manure Tank, Concrete Round- 1171",null,null,null,null,null,null,null,477,"Farm Utility Building",null,null,456,"Tool Shed",null,"Farm Implement Building- 476"]
[null,null,null,null,null,null,null,null,null,null,null,null,null,null,null,null,null,null,null,"Fat & Molasses",null,null,null,1140,"Headrail, Double Swing Self-Locking",null,"Liquid Manure Tank, No Cover- 1172",null,null,null,null,null,null,null,493,"Grain Storage, Flathouse",null,null,468,"Material Storage Shed",null,"Farm Implement Shed- 478"]
[null,null,null,null,null,null,null,null,null,null,null,null,null,null,null,null,null,null,null,"Other",null,null,null,1150,"Watering Trough, Concrete",null,"Manure, Clay Lagoon- 1176",null,null,null,null,null,null,null,524,"Corn Crib Building",null,null,469,"Freestall Barn",null,"Farm Sun Shade Shelter- 566"]
[null,null,null,null,null,null,null,null,null,null,null,null,null,null,null,null,null,null,null,null,null,null,null,1151,"Watering Trough, Steel",null,"Manure, Concrete Open Pit- 1175",null,null,null,null,null,null,null,null,null,null,null,470,"Equipment (Shop) Building",null,"Farm Utility Arch-Rib, Quonset- 557"]
[null,null,null,null,null,null,null,null,null,null,null,null,null,null,null,null,null,null,"Feed Storage Components",null,"Feed Storage Components- combo",null,null,1152,"Watering Tank, Galvanized",null,"Paved Transfer Lane with Curbing- 1386",null,null,null,null,null,null,"Hospital",305,"Barn",null,null,471,"Commercial Utility Building, Light",null,"Farm Utility Building- 477"]
[null,null,null,null,null,null,null,null,null,null,null,null,null,null,null,null,null,1600,"Grain Elevator, Wood Crib, Metal Clad",null,"Bucket Elevator 1,000 to 8,000 Bu/Hr- 1604",null,null,1170,"Liquid Manure Tank, Concrete Rectangular",null,"Paved Transfer Lane without Curbing- 1385",null,null,null,null,null,null,null,469,"Barn, Freestall",null,null,472,"Equipment Shed",null,"Farm Utility Shelter- 565"]
[null,null,null,null,null,null,null,null,null,null,null,null,null,null,null,null,null,1601,"Elevator Annex, Wood Crib, Metal Clad",null,"Bucket Elevator 500 to 999 Bu/Hr- 1608",null,null,1171,"Liquid Manure Tank, Concrete Round",null,"Slurry Tank, Concrete Slab- 1179",null,null,null,null,null,null,null,null,null,null,null,473,"Material Shelter",null,"Farm Utility Storage Shed- 479"]
[null,null,null,null,null,null,null,null,null,null,null,null,null,null,null,null,null,1602,"Grain Elevator, Slip Form Concrete",null,"Bucket Elevator 8,001 to 10,000 Bu/Hr- 1609",null,null,1172,"Liquid Manure Tank, No Cover",null,"Stock Corral Gate- 1246",null,null,null,null,null,null,null,null,null,null,null,476,"Farm Implement Building",null,"Freestall Barn- 469"]
[null,null,null,null,null,null,null,null,null,null,null,null,null,null,null,null,null,1603,"Elevator Annex, Slip Form Concrete",null,"Bunker Silo, Tile-Up Conc, Poles/Braces- 1691",null,null,1173,"Liquid Manure Tank, Plank Cover",null,"Stock Corral, Cable Rails- 1241",null,null,null,null,null,null,null,null,null,null,null,477,"Farm Utility Building",null,"Grain Storage, Flathouse- 493"]
[null,null,null,null,null,null,null,null,null,null,null,null,null,null,null,null,null,1604,"Bucket Elevator 1,000 to 8,000 Bu/Hr",null,"Bunker Silo, Tilt-Up Conc, Precast Walls- 1690",null,null,1175,"Manure, Concrete Open Pit",null,"Stock Corral, Pipe Rails- 1240",null,null,null,null,null,null,"Office",471,"Commercial Utility Building, Light",null,null,478,"Farm Implement Shed",null,"Grain Storage, Utility- 421"]
[null,null,null,null,null,null,null,null,null,null,null,null,null,null,null,null,null,1608,"Bucket Elevator 500 to 999 Bu/Hr",null,"Bunker Silo, Wood, Cantilevered Poles- 1692",null,null,1176,"Manure, Clay Lagoon",null,"Stock Corral, Split Rails, 4\"x4\" Posts- 1242",null,null,null,null,null,null,null,477,"Farm Utility Building",null,null,479,"Farm Utility Storage Shed",null,"Lean-To, Equestrian- 560"]
[null,null,null,null,null,null,null,null,null,null,null,null,null,null,null,null,null,1609,"Bucket Elevator 8,001 to 10,000 Bu/Hr",null,"Elevator Annex, Slip Form Concrete- 1603",null,null,1179,"Slurry Tank, Concrete Slab",null,"Stock Corral, Split Rails, 6\"x6\" Posts- 1244",null,null,null,null,null,null,null,554,"Office Shed",null,null,493,"Grain Storage, Flathouse",null,"Material Shelter- 473"]
[null,null,null,null,null,null,null,null,null,null,null,null,null,null,null,null,null,1612,"Receiving Pit",null,"Elevator Annex, Wood Crib, Metal Clad- 1601",null,null,1184,"Floor-Type Flooding Flush System",null,"Stock Corral, Wood Rails, 4\"x4\" Posts- 1243",null,null,null,null,null,null,null,null,null,null,null,524,"Corn Crib Building",null,"Material Storage Building- 391"]
[null,null,null,null,null,null,null,null,null,null,null,null,null,null,null,null,null,1640,"Silo, Concrete Stave, 10’ - 15’ Dia.",null,"Feed Bin, Fiberglass Hopper Bottom, 10’ Dia.- 1733",null,null,1240,"Stock Corral, Pipe Rails",null,"Stock Corral, Wood Rails, 6\"x6\" Posts- 1245",null,null,null,null,null,null,"Quonset",555,"Commercial Utility, Arch-Rib, Quonset",null,null,554,"Office Shed",null,"Material Storage Shed- 468"]
[null,null,null,null,null,null,null,null,null,null,null,null,null,null,null,null,null,1641,"Silo, Concrete Stave, 16’ - 23’ Dia.",null,"Feed Bin, Fiberglass Hopper Bottom, 6’ Dia.- 1730",null,null,1241,"Stock Corral, Cable Rails",null,null,null,null,null,null,null,null,null,557,"Farm Utility Arch-Rib, Quonset",null,null,555,"Commercial Utility, Arch-Rib, Quonset",null,"Office Shed- 554"]
[null,null,null,null,null,null,null,null,null,null,null,null,null,null,null,null,null,1642,"Silo, Concrete Stave, 24’ - 30’ Dia.",null,"Feed Bin, Fiberglass Hopper Bottom, 7’ Dia.- 1731",null,null,1242,"Stock Corral, Split Rails, 4\"x4\" Posts",null,null,null,null,null,null,null,null,null,558,"Farm Implement Arch-Rib, Quonset",null,null,557,"Farm Utility Arch-Rib, Quonset",null,"Pavilon- 174"]
[null,null,null,null,null,null,null,null,null,null,null,null,null,null,null,null,null,1645,"Silo, Concrete Stave, No Roof, 10’ - 15' Dia.",null,"Feed Bin, Fiberglass Hopper Bottom, 8’ Dia.- 1732",null,null,1243,"Stock Corral, Wood Rails, 4\"x4\" Posts",null,null,null,null,null,null,null,null,null,null,null,null,null,558,"Farm Implement Arch-Rib, Quonset",null,"Prefabricated Storage Shed- 133"]
[null,null,null,null,null,null,null,null,null,null,null,null,null,null,null,null,null,1646,"Silo, Concrete Stave, No Roof, 16’ - 23’ Dia.",null,"Feed Bin, Steel Hopper Bottom, 12’ Dia.- 1743",null,null,1244,"Stock Corral, Split Rails, 6\"x6\" Posts",null,null,null,null,null,null,null,null,"Scales",null,null,null,null,560,"Lean-To, Equestrian",null,"Stable- 378"]
[null,null,null,null,null,null,null,null,null,null,null,null,null,null,null,null,null,1647,"Silo, Concrete Stave, No Roof, 24’ - 30’ Dia.",null,"Feed Bin, Steel Hopper Bottom, 6’ Dia.- 1740",null,null,1245,"Stock Corral, Wood Rails, 6\"x6\" Posts",null,null,null,null,null,null,null,null,null,null,null,null,null,561,"Barn, Feeder",null,"Storage Warehouse- 406"]
[null,null,null,null,null,null,null,null,null,null,null,null,null,null,null,null,null,1650,"Silo, Concrete Poured, 12’ - 15’ Dia.",null,"Feed Bin, Steel Hopper Bottom, 7’ Dia.- 1741",null,null,1246,"Stock Corral Gate",null,null,null,null,null,null,null,null,"Shed",133,"Prefabricated Storage Shed",null,null,562,"Farm Commodity Storage Shed",null,"Tool Shed- 456"]
[null,null,null,null,null,null,null,null,null,null,null,null,null,null,null,null,null,1651,"Silo, Concrete Poured, 16’ - 23’ Dia.",null,"Feed Bin, Steel Hopper Bottom, 9’ Dia.- 1742",null,null,1381,"Holding Pen, Wash Area without Roof",null,null,null,null,null,null,null,null,null,456,"Tool Shed",null,null,565,"Farm Utility Shelter"]
[null,null,null,null,null,null,null,null,null,null,null,null,null,null,null,null,null,1652,"Silo, Concrete Poured, 24’ - 30’ Dia.",null,"Grain Elevator, Slip Form Concrete- 1602",null,null,1382,"Holding Pen, Wash Area with Roof",null,null,null,null,null,null,null,null,null,468,"Material Storage Shed",null,null,566,"Farm Sun Shade Shelter"]
[null,null,null,null,null,null,null,null,null,null,null,null,null,null,null,null,null,1655,"Silo, Concrete Poured, No Roof, 12’ - 15’ Dia.",null,"Grain Elevator, Wood Crib, Metal Clad- 1600",null,null,1385,"Paved Transfer Lane without Curbing",null,null,null,null,null,null,null,null,null,472,"Equipment Shed"]
[null,null,null,null,null,null,null,null,null,null,null,null,null,null,null,null,null,1656,"Silo, Concrete Poured, No Roof, 16’ - 23’ Dia.",null,"Hopper Bins, 7 ft diameter, 25 ft-26 ft bin height- 8511",null,null,1386,"Paved Transfer Lane with Curbing",null,null,null,null,null,null,null,null,null,478,"Farm Implement Shed"]
[null,null,null,null,null,null,null,null,null,null,null,null,null,null,null,null,null,1657,"Silo, Concrete Poured, No Roof, 24’ - 30’ Dia.",null,"Hopper Bins, 7 ft diameter, 27 ft-30 ft bin height- 8512",null,null,1387,"Fence, Pipe, Cable Rails",null,null,null,null,null,null,null,null,null,479,"Farm Utility Storage Shed"]
[null,null,null,null,null,null,null,null,null,null,null,null,null,null,null,null,null,1670,"Silo, Porcelain, 14’ Dia.",null,"Hopper Bins, 7 ft.  Diameter, 22 ft-24 ft bin height- 8510",null,null,1388,"Fence, Pipe, Pipe Rails",null,null,null,null,null,null,null,null,null,554,"Office Shed"]
[null,null,null,null,null,null,null,null,null,null,null,null,null,null,null,null,null,1671,"Silo, Porcelain, 17’ Dia.",null,"Hopper Bins, 8 ft diameter, 14 ft-16 ft bin height- 8513",null,null,1389,"Fence, Galvanized Rub Panel",null,null,null,null,null,null,null,null,null,562,"Farm Commodity Storage Shed"]
[null,null,null,null,null,null,null,null,null,null,null,null,null,null,null,null,null,1672,"Silo, Porcelain, 20’ Dia.",null,"Hopper Bins, 8 ft diameter, 17 ft-19 ft bin height- 8514",null,null,1390,"Fence, 8’ Gate"]
[null,null,null,null,null,null,null,null,null,null,null,null,null,null,null,null,null,1673,"Silo, Porcelain, 25’ Dia.",null,"Hopper Bins, 8 ft diameter, 20 ft-23 ft bin height- 8515",null,null,1391,"Fence, Gate, Each Additional 4’",null,null,null,null,null,null,null,null,"Shelter",184,"Arena Shelter"]
[null,null,null,null,null,null,null,null,null,null,null,null,null,null,null,null,null,1674,"Silo, Porcelain, 31’ Dia.",null,"Hopper Bins, 8 ft diameter, 24 ft-28 ft bin height- 8516",null,null,null,null,null,null,null,null,null,null,null,null,null,473,"Material Shelter"]
[null,null,null,null,null,null,null,null,null,null,null,null,null,null,null,null,null,1675,"Silo, Porcelain, Pre-Owned/Rebuilt, 14’ Dia.",null,"Receiving Pit- 1612",null,null,null,null,null,null,null,null,null,null,null,null,null,560,"Lean-To, Equestrian"]
[null,null,null,null,null,null,null,null,null,null,null,null,null,null,null,null,null,1676,"Silo, Porcelain, Pre-Owned/Rebuilt, 17’ Dia.",null,"Scales, Platform-Steel Plate, 10000 lbs.- 8532",null,null,null,null,null,null,null,null,null,null,null,null,null,565,"Farm Utility Shelter"]
[null,null,null,null,null,null,null,null,null,null,null,null,null,null,null,null,null,1677,"Silo, Porcelain, Pre-Owned/Rebuilt, 20’ Dia.",null,"Scales, Platform-Steel Plate, 20000 lbs.- 8533",null,null,null,null,null,null,null,null,null,null,null,null,null,566,"Farm Sun Shade Shelter"]
[null,null,null,null,null,null,null,null,null,null,null,null,null,null,null,null,null,1678,"Silo, Porcelain, Pre-Owned/Rebuilt, 25’ Dia.",null,"Scales, Platform-Wood, 10000 lbs.- 8524"]
[null,null,null,null,null,null,null,null,null,null,null,null,null,null,null,null,null,1679,"Silo, Porcelain, Pre-Owned/Rebuilt, 31’ Dia.",null,"Scales, Platform-Wood, 20000 lbs.- 8525",null,null,null,null,null,null,null,null,null,null,null,null,"Other",174,"Pavilon"]
[null,null,null,null,null,null,null,null,null,null,null,null,null,null,null,null,null,1690,"Bunker Silo, Tilt-Up Conc, Precast Walls",null,"Silo, Concrete Poured, 12’ - 15’ Dia.- 1650"]
[null,null,null,null,null,null,null,null,null,null,null,null,null,null,null,null,null,1691,"Bunker Silo, Tile-Up Conc, Poles/Braces",null,"Silo, Concrete Poured, 16’ - 23’ Dia.- 1651",null,null,null,null,null,null,null,null,null,null,null,null,null,394,"Cabin, Transient Labor"]
[null,null,null,null,null,null,null,null,null,null,null,null,null,null,null,null,null,1692,"Bunker Silo, Wood, Cantilevered Poles",null,"Silo, Concrete Poured, 24’ - 30’ Dia.- 1652"]
[null,null,null,null,null,null,null,null,null,null,null,null,null,null,null,null,null,1695,"Trench Silo, Concrete",null,"Silo, Concrete Poured, No Roof, 12’ - 15’ Dia.- 1655",null,null,null,null,null,null,null,null,null,null,null,null,null,428,"Arena, Horse"]
[null,null,null,null,null,null,null,null,null,null,null,null,null,null,null,null,null,1696,"Trench Silo, Wood",null,"Silo, Concrete Poured, No Roof, 16’ - 23’ Dia.- 1656"]
[null,null,null,null,null,null,null,null,null,null,null,null,null,null,null,null,null,1697,"Trench Silo, Plastic Lined",null,"Silo, Concrete Poured, No Roof, 24’ - 30’ Dia.- 1657"]
[null,null,null,null,null,null,null,null,null,null,null,null,null,null,null,null,null,1700,"Steel Bin, without Drying, 15’ - 29’ Dia.",null,"Silo, Concrete Stave, 10’ - 15’ Dia.- 1640"]
[null,null,null,null,null,null,null,null,null,null,null,null,null,null,null,null,null,1701,"Steel Bin, without Drying, 30’ - 59’ Dia.",null,"Silo, Concrete Stave, 16’ - 23’ Dia.- 1641"]
[null,null,null,null,null,null,null,null,null,null,null,null,null,null,null,null,null,1702,"Steel Bin, without Drying, 60’ - 89’ Dia.",null,"Silo, Concrete Stave, 24’ - 30’ Dia.- 1642"]
[null,null,null,null,null,null,null,null,null,null,null,null,null,null,null,null,null,1703,"Steel Bin, without Drying, 90’ - 105’ Dia.",null,"Silo, Concrete Stave, No Roof, 10’ - 15' Dia.- 1645"]
[null,null,null,null,null,null,null,null,null,null,null,null,null,null,null,null,null,1706,"Steel Bin, with Drying, 15’ - 29’ Dia.",null,"Silo, Concrete Stave, No Roof, 16’ - 23’ Dia.- 1646"]
[null,null,null,null,null,null,null,null,null,null,null,null,null,null,null,null,null,1707,"Steel Bin, with Drying, 30’ - 48’ Dia.",null,"Silo, Concrete Stave, No Roof, 24’ - 30’ Dia.- 1647"]
[null,null,null,null,null,null,null,null,null,null,null,null,null,null,null,null,null,1710,"Steel Bin, Concrete Slab Floor",null,"Silo, Porcelain, 14’ Dia.- 1670"]
[null,null,null,null,null,null,null,null,null,null,null,null,null,null,null,null,null,1716,"Steel Tank",null,"Silo, Porcelain, 17’ Dia.- 1671"]
[null,null,null,null,null,null,null,null,null,null,null,null,null,null,null,null,null,1720,"Steel Bin, Hopper Bottom, 15’ Dia.",null,"Silo, Porcelain, 20’ Dia.- 1672"]
[null,null,null,null,null,null,null,null,null,null,null,null,null,null,null,null,null,1721,"Steel Bin, Hopper Bottom, 18’ Dia.",null,"Silo, Porcelain, 25’ Dia.- 1673"]
[null,null,null,null,null,null,null,null,null,null,null,null,null,null,null,null,null,1722,"Steel Bin, Hopper Bottom, 21’ Dia.",null,"Silo, Porcelain, 31’ Dia.- 1674"]
[null,null,null,null,null,null,null,null,null,null,null,null,null,null,null,null,null,1723,"Steel Bin, Hopper Bottom, 24’ Dia.",null,"Silo, Porcelain, Pre-Owned/Rebuilt, 14’ Dia.- 1675"]
[null,null,null,null,null,null,null,null,null,null,null,null,null,null,null,null,null,1724,"Steel Bin, Hopper Bottom, 30’ Dia.",null,"Silo, Porcelain, Pre-Owned/Rebuilt, 17’ Dia.- 1676"]
[null,null,null,null,null,null,null,null,null,null,null,null,null,null,null,null,null,1730,"Feed Bin, Fiberglass Hopper Bottom, 6’ Dia.",null,"Silo, Porcelain, Pre-Owned/Rebuilt, 20’ Dia.- 1677"]
[null,null,null,null,null,null,null,null,null,null,null,null,null,null,null,null,null,1731,"Feed Bin, Fiberglass Hopper Bottom, 7’ Dia.",null,"Silo, Porcelain, Pre-Owned/Rebuilt, 25’ Dia.- 1678"]
[null,null,null,null,null,null,null,null,null,null,null,null,null,null,null,null,null,1732,"Feed Bin, Fiberglass Hopper Bottom, 8’ Dia.",null,"Silo, Porcelain, Pre-Owned/Rebuilt, 31’ Dia.- 1679"]
[null,null,null,null,null,null,null,null,null,null,null,null,null,null,null,null,null,1733,"Feed Bin, Fiberglass Hopper Bottom, 10’ Dia.",null,"Steel Bin, Concrete Slab Floor- 1710"]
[null,null,null,null,null,null,null,null,null,null,null,null,null,null,null,null,null,1740,"Feed Bin, Steel Hopper Bottom, 6’ Dia.",null,"Steel Bin, Concrete Slab Floor, 1-14 ft. diameter- 8504"]
[null,null,null,null,null,null,null,null,null,null,null,null,null,null,null,null,null,1741,"Feed Bin, Steel Hopper Bottom, 7’ Dia.",null,"Steel Bin, Hopper Bottom, 15’ Dia.- 1720"]
[null,null,null,null,null,null,null,null,null,null,null,null,null,null,null,null,null,1742,"Feed Bin, Steel Hopper Bottom, 9’ Dia.",null,"Steel Bin, Hopper Bottom, 18’ Dia.- 1721"]
[null,null,null,null,null,null,null,null,null,null,null,null,null,null,null,null,null,1743,"Feed Bin, Steel Hopper Bottom, 12’ Dia.",null,"Steel Bin, Hopper Bottom, 21’ Dia.- 1722"]
[null,null,null,null,null,null,null,null,null,null,null,null,null,null,null,null,null,1750,"Cylindrical Wire Mesh Corn Crib Bin",null,"Steel Bin, Hopper Bottom, 24’ Dia.- 1723"]
[null,null,null,null,null,null,null,null,null,null,null,null,null,null,null,null,null,8500,"Steel Bin, without Drying, 1-14 ft.dia.,7 ft. hgt.",null,"Steel Bin, Hopper Bottom, 30’ Dia.- 1724"]
[null,null,null,null,null,null,null,null,null,null,null,null,null,null,null,null,null,8501,"Steel Bin, without Drying, 1-14 ft.dia.,11 ft. hgt.",null,"Steel Bin, without Drying, 1-14 ft.dia.,11 ft. hgt.- 8501"]
[null,null,null,null,null,null,null,null,null,null,null,null,null,null,null,null,null,8502,"Steel Bin, without Drying, 1-14 ft.dia.,15 ft. hgt.",null,"Steel Bin, without Drying, 1-14 ft.dia.,15 ft. hgt.- 8502"]
[null,null,null,null,null,null,null,null,null,null,null,null,null,null,null,null,null,8503,"Steel Bin, without Drying, 1-14 ft.dia.,18 ft. hgt.",null,"Steel Bin, without Drying, 1-14 ft.dia.,18 ft. hgt.- 8503"]
[null,null,null,null,null,null,null,null,null,null,null,null,null,null,null,null,null,8504,"Steel Bin, Concrete Slab Floor, 1-14 ft. diameter",null,"Steel Bin, without Drying, 1-14 ft.dia.,7 ft. hgt.- 8500"]
[null,null,null,null,null,null,null,null,null,null,null,null,null,null,null,null,null,8506,"Steel Bin, with Drying, 1-14 ft.dia.,7 ft. hgt.",null,"Steel Bin, without Drying, 15’ - 29’ Dia.- 1700"]
[null,null,null,null,null,null,null,null,null,null,null,null,null,null,null,null,null,8507,"Steel Bin, with Drying, 1-14 ft.dia., 11 ft. hgt.",null,"Steel Bin, without Drying, 30’ - 59’ Dia.- 1701"]
[null,null,null,null,null,null,null,null,null,null,null,null,null,null,null,null,null,8508,"Steel Bin, with Drying, 1-14 ft.dia., 15 ft. hgt.",null,"Steel Bin, without Drying, 60’ - 89’ Dia.- 1702"]
[null,null,null,null,null,null,null,null,null,null,null,null,null,null,null,null,null,8509,"Steel Bin, with Drying, 1-14 ft.dia., 18 ft. hgt.",null,"Steel Bin, without Drying, 90’ - 105’ Dia.- 1703"]
[null,null,null,null,null,null,null,null,null,null,null,null,null,null,null,null,null,8510,"Hopper Bins, 7 ft.  Diameter, 22 ft-24 ft bin height",null,"Steel Tank- 1716"]
[null,null,null,null,null,null,null,null,null,null,null,null,null,null,null,null,null,8511,"Hopper Bins, 7 ft diameter, 25 ft-26 ft bin height",null,"Trench Silo, Concrete- 1695"]
[null,null,null,null,null,null,null,null,null,null,null,null,null,null,null,null,null,8512,"Hopper Bins, 7 ft diameter, 27 ft-30 ft bin height",null,"Trench Silo, Wood- 1696"]
[null,null,null,null,null,null,null,null,null,null,null,null,null,null,null,null,null,8513,"Hopper Bins, 8 ft diameter, 14 ft-16 ft bin height"]
[null,null,null,null,null,null,null,null,null,null,null,null,null,null,null,null,null,8514,"Hopper Bins, 8 ft diameter, 17 ft-19 ft bin height"]
[null,null,null,null,null,null,null,null,null,null,null,null,null,null,null,null,null,8515,"Hopper Bins, 8 ft diameter, 20 ft-23 ft bin height"]
[null,null,null,null,null,null,null,null,null,null,null,null,null,null,null,null,null,8516,"Hopper Bins, 8 ft diameter, 24 ft-28 ft bin height"]
[null,null,null,null,null,null,null,null,null,null,null,null,null,null,null,null,null,8517,"Grain Bin Vent. Floor, 18 ft-48 ft diam, 19 ft-59 ft bin hgt"]
[null,null,null,null,null,null,null,null,null,null,null,null,null,null,null,null,null,8524,"Scales, Platform-Wood, 10000 lbs."]
[null,null,null,null,null,null,null,null,null,null,null,null,null,null,null,null,null,8525,"Scales, Platform-Wood, 20000 lbs."]
[null,null,null,null,null,null,null,null,null,null,null,null,null,null,null,null,null,8532,"Scales, Platform-Steel Plate, 10000 lbs."]
[null,null,null,null,null,null,null,null,null,null,null,null,null,null,null,null,null,8533,"Scales, Platform-Steel Plate, 20000 lbs."]
[]
[null,null,null,null,null,null,null,null,null,null,null,null,null,null,null,null,null,"Quality Ratings"]
[null,null,null,null,null,null,null,null,null,null,null,null,null,null,null,null,null,"USED THIS LIST FOR 2025"]
[]
[null,null,null,null,null,null,null,null,null,null,null,null,null,null,null,null,null,"Very Good",4,"Very Good"]
[null,null,null,null,null,null,null,null,null,null,null,null,null,null,null,null,null,"Good",3,"Good"]
[null,null,null,null,null,null,null,null,null,null,null,null,null,null,null,null,null,"Average",2,"Average"]
[null,null,null,null,null,null,null,null,null,null,null,null,null,null,null,null,null,"Fair",1,"Fair"]
[null,null,null,null,null,null,null,null,null,null,null,null,null,null,null,null,null,"Low",0.6,"Low"]

{"sheet":"Price Tbl-2026 SalesComp","index":4,"n_rows":47,"n_cols":10,"rows_kept":47,"cut":false,"hidden":false,"merged":[[40,0,40,3],[40,5,40,9],[13,0,13,3],[13,5,13,9],[22,0,22,3],[22,5,22,9],[31,0,31,3],[31,5,31,9],[4,0,4,3],[4,5,4,9],[0,0,1,9],[2,0,2,3],[2,5,2,9],[3,0,3,3],[3,5,3,9]]}
["2026 Guide"]
[]
["Added very good category interpolation for 2026",null,null,null,null,"BOLD AMOUNTS ARE SALES (rounded)"]
["PVD Recommended Increase for 2026 guide",null,null,null,null,"COMPARISON- 17 Vendor Sales-Applied to 2025 Table Relationships"]
["Weigh and Mix/Full Batch in Mill ",null,null,null,null,"Weigh and Mix/Full Batch in Mill "]
[null,"Low","High","Midpt",null,null,"low ","high","midpt","Sale % change from 2026 recommend (high)"]
["Very Good",140,180,160,null,"Very Good",205,255,230,0.41666666666666669]
["Good",100,130,115,null,"Good",130,175,155,0.34615384615384615]
["Average",75,90,85,null,"Average",140,175,160,0.94444444444444442]
["Fair",50,75,65,null,"Fair",90,135,115,0.8]
["Low",30,50,40,null,"Low",60,105,85,1.1000000000000001]
[]
[]
["Weigh System in Mill, Mix Batch in Feed Truck /Stationary Mixer",null,null,null,null,"Weigh System in Mill, Mix Batch in Feed Truck /Stationary Mixer"]
[null,"Low","High","Midpt",null,null,"low ","high","midpt","Sale % change from 2026 recommend (high)"]
["Very Good",130,170,150,null,"Very Good",160,200,180,0.17647058823529413]
["Good",95,130,115,null,"Good",125,170,150,0.30769230769230771]
["Average",75,95,85,null,"Average",95,120,110,0.26315789473684209]
["Fair",50,75,65,null,"Fair",65,95,80,0.26666666666666666]
["Low",25,50,40,null,"Low",35,65,50,0.3]
[]
[]
["Bunker System—Weigh and Mix Batch in Feed-Truck/Stationary Mixer ",null,null,null,null,"Bunker System—Weigh and Mix Batch in Feed-Truck/Stationary Mixer"]
[null,"Low","High","Midpt",null,null,"low ","high","midpt","Sale % change from 2026 recommend (high)"]
["Very Good",125,165,145,null,"Very Good",130,165,150,0]
["Good",95,125,110,null,"Good",100,130,115,0.04]
["Average",70,90,80,null,"Average",75,95,85,5.5555555555555552E-2]
["Fair",45,70,60,null,"Fair",50,75,65,7.1428571428571425E-2]
["Low",25,45,35,null,"Low",25,45,35,0]
[]
[]
["Dry Roll Mill Facility",null,null,null,null,"Dry Roll Mill Facility"]
[null,"Low","High","Midpt",null,null,"low ","high","midpt","Sale % change from 2026 recommend (high)"]
["Very Good",115,165,140,null,"Very Good",130,160,145,-3.0303030303030304E-2]
["Good",80,115,100,null,"Good",85,125,105,8.6956521739130432E-2]
["Average",55,80,70,null,"Average",65,95,80,0.1875]
["Fair",40,55,50,null,"Fair",45,60,55,9.0909090909090912E-2]
["Low",20,35,30,null,"Low",25,40,35,0.14285714285714285]
[]
[]
["Minimum Feed Processing Facility",null,null,null,null,"Minimum Feed Processing Facility"]
[null,"Low","High","Midpt",null,null,"low ","high","midpt","Sale % change from 2026 recommend (high)"]
["Very Good",60,90,75,null,"Very Good",170,215,195,1.3888888888888888]
["Good",40,60,50,null,"Good",115,170,145,1.8333333333333333]
["Average",25,35,30,null,"Average",80,110,95,2.1428571428571428]
["Fair",15,25,20,null,"Fair",40,70,55,1.8]
["Low",5,15,10,null,"Low",10,40,25,1.6666666666666667]